Cogmind - Beta 16.1 @@@ ROGUE MODE // 2026.05.01 @ 17:38:47 Player: KURIIRI Result: Destroyed by Lightning with EMDS Performance ------------- Evolutions (6) 3000 Regions Visited (28) 5600 Robots Destroyed (316) 1580 Value Destroyed (14072) 14072 Prototype IDs (53) 1060 Alien Tech Used (0) 0 Bonus (10356) 10356 TOTAL SCORE: 35668 Bonus ------- High Alert Combat Kills 2097 Follower Combat Kills 2529 Hunted by Unchained 500 Awakened Behemoth Slayer 1000 Entered Garrisons 200 Used RIF Installer 500 Network Hubs Disabled 200 Registered with UFD 300 Met Optimus in HQ 500 Met Imprinter 300 Met Warlord at Base 500 MAIN.C Attacked Warlord 500 Warlord Defense Kills 1948 Built Enhanced Grunts 300 A7 Reached Mainframe 300 Met R17 at Cetus 500 Friendly Fire -1818 Cogmind --------- Core Integrity 0/1150 Matter 290/300 Energy 58/100 System Corruption 21% Temperature Cool (0) Movement Hovering (240) Ox3 Location -4/Hub_04(d) Parts ------- > --- POWER (1) -------- (None) > --- PROPULSION (6) --- Improved Antigrav System > --- UTILITY (10) ----- High-capacity Storage Unit Long-range Sensor Array Advanced Signal Interpreter Experimental Target Analyzer Advanced Hacking Suite Improved System Shield > --- WEAPON (2) ------- (None) > --- INVENTORY (20) --- Neutrino Core Particle Reactor Improved Gyrokinetic Inverter Improved Linear Gravjet Improved Linear Gravjet Cooled Antigrav System Cooled Antigrav System Cooled Linear Gravjet Large Storage Unit Experimental Matter Compressor (500) Relay Coupler [NC] (30) Advanced KE Penetrator Advanced KE Penetrator Advanced KE Penetrator Advanced KE Penetrator Improved Proton Missile Launcher Improved Plasma Cutter CR-A16's Behemoth Slayer Peak State ------------ > --- POWER ------------ Quantum Reactor > --- PROPULSION ------- Heavy Treads Heavy Treads Centrium Heavy Treads > --- UTILITY ---------- High-capacity Storage Unit Long-range Sensor Array Advanced Signal Interpreter Experimental Target Analyzer Core Analyzer Centrium Medium Armor Plating Centrium Medium Armor Plating Improved Hacking Suite Advanced Hacking Suite Improved System Shield > --- WEAPON ----------- Advanced KE Penetrator Advanced KE Penetrator > --- INVENTORY -------- Neutrino Core Particle Reactor Improved Antigrav System Improved Gyrokinetic Inverter Improved Linear Gravjet Improved Linear Gravjet Cooled Antigrav System Cooled Antigrav System Cooled Linear Gravjet Large Storage Unit Experimental Matter Compressor Relay Coupler [NC] Advanced KE Penetrator Advanced KE Penetrator Hypervelocity Mass Driver Hypervelocity Mass Driver Improved Proton Missile Launcher Improved Plasma Cutter CR-A16's Behemoth Slayer [Rating: 140] Favorites ----------- Power Light Fission Core Engine Improved Ion Engine Power Core Light Fission Core Reactor Quantum Reactor Propulsion Cooled Antigrav System Treads Heavy Treads Leg Aluminum Leg Wheel Armored Wheel Hover Unit Cooled Antigrav System Flight Unit Flightbrick Utility Experimental Target Analyzer Device Improved Sensor Array Storage Large Storage Unit Processor Experimental Target Analyzer Hackware Improved Hacking Suite Protection Centrium Medium Armor Plating Weapon Tri-rail Accelerator Energy Gun EM Pulse Gun Energy Cannon Powered Cannon Ballistic Gun KE Penetrator Ballistic Cannon Tri-rail Accelerator Launcher Improved Proton Missile Launcher Special Weapon Improved Plasma Cutter Slashing Weapon Phasing Sabre Piercing Weapon CR-A16's Behemoth Slayer Build | -11 -10 -10 -10 -8 -8 -6 -6 -6 -6 -6 -6 -5 -5 -5 -5 -5 -5 -5 -4 -4 -4 -4 -4 -4 -4 -4 -4 -4 ------- Run | Yrd Mat Min Sub Rec Scr Fac Was Fac Low Low Zio Pro Fac Was Fac Upp Upp War Pro Fac Was Fac Gar Fac Ext Cet Arc Hub Slots Evolved 12 | . . . . . . 8 . . . . . . 2 . . . . . . 2 . . . . . . . . Power . | . . . . . . . . . . . . . . . . . . . . . . . . . . . . . Propulsion 4 | . . . . . . 3 . . . . . . . . . . . . . 1 . . . . . . . . Utility 8 | . . . . . . 5 . . . . . . 2 . . . . . . 1 . . . . . . . . Weapon . | . . . . . . . . . . . . . . . . . . . . . . . . . . . . . Parts Attached 166 | . 12 . 13 1 4 13 . 21 . 1 . . 6 . 15 2 1 8 1 13 2 . 22 5 15 4 5 2 Power 17 | . 1 . 1 1 . 2 . 1 . . . . . . 2 . . . . 3 1 . 3 . 1 1 . . Engine 4 | . 1 . 1 1 . 1 . . . . . . . . . . . . . . . . . . . . . . Core 6 | . . . . . . 1 . 1 . . . . . . 2 . . . . . . . 1 . 1 . . . Reactor 7 | . . . . . . . . . . . . . . . . . . . . 3 1 . 2 . . 1 . . Propulsion 49 | . 3 . 3 . 3 2 . 6 . 1 . . 1 . 7 . . 1 . 5 1 . 6 4 5 1 . . Treads 12 | . 2 . 2 . . . . . . . . . . . . . . . . . . . 5 . 2 1 . . Leg . | . . . . . . . . . . . . . . . . . . . . . . . . . . . . . Wheel 5 | . 1 . 1 . 1 . . 1 . . . . . . . . . . . . . . . . 1 . . . Hover 29 | . . . . . 2 . . 4 . 1 . . 1 . 7 . . 1 . 5 1 . 1 4 2 . . . Flight 3 | . . . . . . 2 . 1 . . . . . . . . . . . . . . . . . . . . Utility 69 | . 4 . 3 . 1 9 . 13 . . . . 5 . 5 2 . 4 1 4 . . 8 1 3 2 4 . Device 25 | . 2 . . . . 2 . 2 . . . . 3 . 3 1 . 3 1 2 . . 3 . . . 3 . Storage 7 | . 2 . . . . 1 . 2 . . . . . . . . . . . . . . . 1 1 . . . Processor 11 | . . . . . . 1 . 6 . . . . . . . . . 1 . 2 . . 1 . . . . . Hackware 14 | . . . . . . 4 . 3 . . . . 2 . 2 . . . . . . . 1 . 1 . 1 . Protection 12 | . . . 3 . 1 1 . . . . . . . . . 1 . . . . . . 3 . 1 2 . . Artifact . | . . . . . . . . . . . . . . . . . . . . . . . . . . . . . Weapon 31 | . 4 . 6 . . . . 1 . . . . . . 1 . 1 3 . 1 . . 5 . 6 . 1 2 Energy Gun 1 | . . . . . . . . . . . . . . . . . . 1 . . . . . . . . . . Energy Cannon 4 | . 2 . 2 . . . . . . . . . . . . . . . . . . . . . . . . . Ballistic Gun 8 | . . . 3 . . . . . . . . . . . . . . . . . . . 2 . 1 . . 2 Ballistic Cannon 9 | . 2 . . . . . . 1 . . . . . . 1 . . . . 1 . . 1 . 3 . . . Launcher 3 | . . . 1 . . . . . . . . . . . . . 1 1 . . . . . . . . . . Special Weapon 2 | . . . . . . . . . . . . . . . . . . . . . . . . . 2 . . . Impact Weapon . | . . . . . . . . . . . . . . . . . . . . . . . . . . . . . Slashing Weapon 1 | . . . . . . . . . . . . . . . . . . . . . . . . . . . 1 . Piercing Weapon 3 | . . . . . . . . . . . . . . . . . . 1 . . . . 2 . . . . . Special Melee Weapon . | . . . . . . . . . . . . . . . . . . . . . . . . . . . . . Unidentified Prototypes 18 | . . . . . . . . 7 . . . . . . . . . 5 . 1 1 . . 1 . 2 . 1 Corrupted Parts 2 | . . . . . . . . . . . . . 1 . . . . . . . . . . 1 . . . . System Corruption 11 | . . . . . . . . . . . . . 7 . . . . . . . . . . 4 . . . . Parts Lost 40 | . . . 3 1 . . . . . 2 . . . . 7 . . 1 1 5 . . 7 . 3 . . 10 Power 7 | . . . 1 . . . . . . 1 . . . . 1 . . . . 1 . . 2 . . . . 1 Propulsion 14 | . . . . . . . . . . 1 . . . . 4 . . . . 2 . . 2 . 2 . . 3 Utility 13 | . . . 1 1 . . . . . . . . . . 1 . . 1 . 1 . . 3 . 1 . . 4 Weapon 6 | . . . 1 . . . . . . . . . . . 1 . . . 1 1 . . . . . . . 2 Highest Loss Streak 9 | . . . 1 1 . . . . . 1 . . . . 3 . . 1 1 4 . . 3 . 2 . . 9 To Critical Strikes 2 | . . . . . . . . . . . . . . . . . . . . 1 . . . . 1 . . . Average Backups 14 | 6 13 20 18 16 11 7 9 9 13 14 14 13 14 14 12 14 15 14 13 12 13 14 13 13 15 19 19 19 Power . | 1 . . . . . . 1 1 1 . . . . . 1 2 3 2 2 3 3 4 1 1 1 1 1 2 Propulsion 2 | 4 2 4 3 3 3 1 1 1 3 2 2 2 2 3 3 2 2 2 3 1 . 1 1 2 4 7 7 7 Utility 5 | . 5 10 5 3 4 2 3 5 8 9 10 8 8 8 5 7 7 5 4 3 3 3 6 5 4 4 4 3 Weapon 3 | 1 3 5 7 9 2 1 2 1 1 1 2 3 3 2 2 2 2 3 4 4 5 5 3 3 4 6 6 6 Tool/Special . | . . . . . . . . . . . . . . . . . . . . . . . . . . . . . Unused Backups 55 | . 4 . 7 . 6 . . 6 . . . 2 . 2 4 . 2 2 . . 1 . 6 1 3 3 . 6 Power 7 | . 1 . . . . . . . . . . . . . . . . . . . 1 . 2 . 1 . . 2 Propulsion 5 | . . . 1 . . . . . . . . . . . 1 . . . . . . . . 1 1 . . 1 Utility 22 | . 3 . 3 . 1 . . 2 . . . 2 . 1 3 . 1 1 . . . . 3 . . 1 . 1 Weapon 18 | . . . 2 . 5 . . 2 . . . . . 1 . . 1 1 . . . . 1 . 1 2 . 2 Tool/Special 3 | . . . 1 . . . . 2 . . . . . . . . . . . . . . . . . . . . Average Slot Usage (%) 81 | . 99 100 91 69 59 50 66 74 80 79 80 80 77 82 84 87 82 84 85 87 84 84 81 91 90 81 81 74 Engine 3 | . 14 14 13 12 12 4 . . . . . . . . . . . . . . . . . . . . . . Core 2 | . . . . . . . 5 5 6 5 6 6 5 5 4 5 5 5 5 1 . . 1 . 4 1 . . Treads 6 | . 22 14 13 12 7 . . . . . . . . . . . . . . . . . 9 . 4 11 15 13 Wheel 3 | . 5 14 13 12 13 . . . . . . . . . . . . . . . . . . . 1 3 . . Hover 10 | . . . . . 2 . . 2 20 20 20 20 17 17 20 23 23 23 23 26 26 26 10 31 17 . . . Flight 1 | . . . . . . 9 11 9 . . . . . . . . . . . . . . . . . . . . Device 6 | . 13 14 . . . 4 5 5 6 6 6 6 10 11 10 3 . 4 9 10 10 10 5 11 9 5 5 5 Storage 7 | . 14 14 13 12 9 5 5 5 6 6 6 6 5 5 5 5 5 5 5 5 5 5 5 5 5 5 5 5 Processor 12 | . . . . . . 4 5 13 26 26 26 26 23 23 23 19 17 16 11 14 15 15 15 15 15 15 15 11 Hackware 9 | . . . . . . 8 22 23 6 6 6 6 8 11 11 17 17 17 17 15 15 15 12 10 14 15 13 14 Protection 3 | . . . 12 7 . 4 5 2 . . . . . . . 3 5 2 5 3 . . 5 4 4 7 10 9 Energy Cannon 4 | . 11 28 15 12 12 5 5 3 . . . . . . . . . . . . . . . . . . . . Ballistic Gun 1 | . . . 6 . . . . . . . . . . . . . . . . . . . 5 1 4 . . 2 Ballistic Cannon 3 | . 13 . . . . . . 1 6 6 6 6 4 5 5 5 5 2 2 4 5 5 . 3 4 10 7 3 Peak Build Rating 140 | 6 14 14 28 30 28 83 82 120 87 87 87 87 102 102 117 117 111 124 120 132 132 123 133 129 127 131 138 140 Average Rating 81 | 6 11 14 18 27 25 68 81 95 86 86 87 86 95 101 109 115 110 114 113 127 122 123 117 121 113 114 133 127 On Entrance 84 | 6 6 14 14 28 27 27 81 82 86 87 87 87 86 101 101 116 111 110 115 102 119 123 123 126 123 106 131 138 Avg Prop Armor Cover (%) 7 | . 11 11 10 10 11 . . . . . . . . . 4 . . 4 . 2 . . 10 3 3 5 . . Naked Turns . | . . . . . . . . . . . . . . . . . . . . . . . . . . . . . Heaviest Build 100 | 13 55 53 60 59 56 28 28 43 43 43 43 43 49 48 54 62 57 67 68 66 57 57 75 58 93 99 100 100 Greatest Support 220 | 20 40 12 12 12 24 28 28 49 49 49 49 49 49 49 61 57 57 60 60 78 63 63 210 76 140 220 220 220 Greatest Overweight (x) 5 | . 4 4 4 4 4 . . 1 . 1 . . . . 3 1 . 1 1 . . . 2 1 5 5 . . Average Overweight (x) . | . 1 4 4 4 2 . . . . . . . . . . . . . . . . . . . . . . . Largest Inventory Capacity 20 | 8 20 20 20 20 20 20 10 15 15 15 15 15 15 15 15 15 15 15 15 15 15 15 15 15 20 20 20 20 Average Capacity 15 | 8 15 20 20 20 16 10 10 10 15 15 15 15 15 15 15 15 15 15 15 15 15 15 15 15 16 20 20 20 Most Carried 20 | 6 20 20 20 20 20 14 10 13 14 15 15 15 15 15 15 15 15 15 15 14 15 15 15 15 20 20 20 19 Average Carried 14 | 6 13 20 19 19 13 7 9 9 13 14 14 13 14 14 12 14 14 14 14 12 14 15 14 14 16 19 19 19 Final Capacity 20 | 8 20 20 20 20 20 10 10 15 15 15 15 15 15 15 15 15 15 15 15 15 15 15 15 15 20 20 20 20 Final Carried 20 | 6 20 20 19 20 14 9 10 13 14 14 15 13 15 14 13 15 15 15 15 13 15 15 14 15 20 20 19 18 Class Distribution -------------------- 30% | Mutant 24% | Hacker-Mutant 13% | Hacker-Scout 8% | Scout 7% | Commander-Mutant 5% | Commander-Scout 3% | Scavenger-Mutant Dominant Class ---------------- Mutant | -10/Materials Mutant | -10/Mines Mutant | -10/Subcaves Mutant | -8/Recycling Mutant | -8/Scraptown Mutant | -6/Factory Hacker-Mutant | -6/Waste Hacker-Scout | -6/Factory Scout | -6/Lower Caves Scout | -6/Lower Caves Commander-Scout | -6/Zion Scout | -5/Proximity Caves Hacker-Scout | -5/Factory Hacker-Scout | -5/Waste Hacker-Scout | -5/Factory Hacker-Mutant | -5/Upper Caves Hacker-Mutant | -5/Upper Caves Hacker-Mutant | -5/Warlord Hacker-Mutant | -4/Proximity Caves Hacker-Mutant | -4/Factory Hacker-Mutant | -4/Waste Hacker-Mutant | -4/Factory Hacker-Mutant | -4/Garrison Hacker-Mutant | -4/Factory Hacker-Mutant | -4/Extension Commander-Mutant | -4/Cetus Commander-Mutant | -4/Archives Scavenger-Mutant | -4/Hub_04(d) Resources | -11 -10 -10 -10 -8 -8 -6 -6 -6 -6 -6 -6 -5 -5 -5 -5 -5 -5 -5 -4 -4 -4 -4 -4 -4 -4 -4 -4 -4 ----------- Run | Yrd Mat Min Sub Rec Scr Fac Was Fac Low Low Zio Pro Fac Was Fac Upp Upp War Pro Fac Was Fac Gar Fac Ext Cet Arc Hub Matter Collected 10398 | 200 500 40 459 27 80 130 . 844 79 476 5 304 599 217 1279 373 216 319 87 511 112 67 1374 . 1452 123 257 268 Remotely . | . . . . . . . . . . . . . . . . . . . . . . . . . . . . . Salvage Created 14622 | 80 457 29 623 686 . 97 . 573 51 469 . 530 623 1338 1372 211 132 597 86 979 429 97 2122 225 1394 226 504 692 Parts 572 | 8 32 4 38 23 . 7 . 31 4 18 . 22 37 4 55 10 8 18 . 31 2 2 80 15 69 8 26 20 Haulers Intercepted 4 | . 2 . . . . . . 1 . . . . . . . . . . . 1 . . . . . . . . Recyclers Shooed 9 | . . . . 2 . . . 1 . . . . . . 3 . . . . . . . . . 2 . . 1 Parts Field Recycled . | . . . . . . . . . . . . . . . . . . . . . . . . . . . . . Retrieved Matter . | . . . . . . . . . . . . . . . . . . . . . . . . . . . . . Parts Self-Destructed 74 | . . . 12 . . . . . 5 21 . 19 . . . 10 7 . . . . . . . . . . . Prevented 2 | . . . . . . . . . . . . 1 . . . . 1 . . . . . . . . . . . Parts Restored . | . . . . . . . . . . . . . . . . . . . . . . . . . . . . . Kills | -11 -10 -10 -10 -8 -8 -6 -6 -6 -6 -6 -6 -5 -5 -5 -5 -5 -5 -5 -4 -4 -4 -4 -4 -4 -4 -4 -4 -4 ------- Run | Yrd Mat Min Sub Rec Scr Fac Was Fac Low Low Zio Pro Fac Was Fac Upp Upp War Pro Fac Was Fac Gar Fac Ext Cet Arc Hub Combat Hostiles Destroyed 223 | . 8 . 15 6 . 1 . 4 3 15 . 13 12 6 41 7 3 18 2 10 2 . 21 4 19 4 2 7 Melee 5 | . . . . . . . . . . . . . . . . . . . . 2 . . 3 . . . . . Guns 12 | . . . 2 . . . . . . . . . . . . . . . . . . . 7 . 3 . . . Cannons 173 | . 8 . 6 5 . 1 . 4 3 15 . 13 11 6 41 7 3 . 2 8 2 . 10 4 14 4 2 4 AOE 24 | . . . 4 . . . . . . . . . 1 . . . . 16 . . . . 1 . . . . 2 Classes Destroyed 28 | 2 7 . 3 4 . 1 . . . 3 . 3 . 1 1 . . 2 . . . . . . 1 . . . Worker 12 | . 1 . . . . . . 3 . . . . 2 . 1 . . . . 4 . . . . . . . 1 Builder 13 | . 2 1 . . . . . 1 . . . . 3 . 2 . . . . 2 . . . . 1 . . 1 Tunneler 4 | 1 1 . . . . . . . . . . . 1 . 1 . . . . . . . . . . . . . Hauler 4 | . 2 . . . . . . 1 . . . . . . . . . . . 1 . . . . . . . . Recycler 12 | 1 1 . . 5 . . . 1 . . . . . . . . . . . 3 . . . . . . . 1 Minesweeper 3 | . . . . . . . . . . . . 2 . . . . 1 . . . . . . . . . . . Mechanic 2 | . 1 . . . . . . . . . . . . . . . . . . . . . 1 . . . . . Operator 14 | . . . . . . 1 . . . . . . . . 4 . . . . . . . . . . . 9 . Drone 2 | . . . . . . . . . . . . 2 . . . . . . . . . . . . . . . . Turret 2 | . . . 2 . . . . . . . . . . . . . . . . . . . . . . . . . Watcher 17 | . 3 . . . . 1 . 3 . . . . 2 . 2 . . . . 4 . . . 1 1 . . . Swarmer 36 | . 5 . 3 . . . . . 3 4 . . . . 13 3 . 1 . . . . 1 . 3 . . . Cutter 3 | . . . . . . . . . . . . . . . 3 . . . . . . . . . . . . . Grunt 78 | . 3 . . . . . . 1 . 7 . 7 11 . 13 4 1 12 . 1 . . 11 . 4 . . 3 Brawler 4 | . . . . 1 . . . . . . . 1 . . 1 . . 1 . . . . . . . . . . Duelist 4 | . . . . . . . . . . 1 . 2 1 . . . . . . . . . . . . . . . Protector 3 | . . . . . . . . . . . . . . . . . . 2 . . . . . . . . . 1 Sentry 24 | . . . . 3 . 1 . 1 . 1 . . . . 2 . . . . 1 . . 5 . 8 . 2 . Demolisher 1 | . . . . . . . . . . . . . . . . . . 1 . . . . . . . . . . Specialist 5 | . . . . . . . . . . . . 2 . . . . . 1 . . . . 2 . . . . . Hunter 12 | . . . . 1 . . . . . . . . . . 4 . . . 2 4 . . 1 . . . . . Programmer 19 | . . . . 1 . . . 2 . . . . . . 5 . 2 . . 4 . . 1 4 . . . . Behemoth 2 | . . . . . . . . . . . . . . . . . . . . . . . . . 2 . . . Compactor 8 | . . . . . . . . . . . . . . 6 . . . . . . 2 . . . . . . . Cetus Guard 4 | . . . . . . . . . . . . . . . . . . . . . . . . . . 4 . . Lightning 3 | . . . . . . . . . . . . . . . . . . . . . . . . . . . . 3 Artisan 1 | . . . 1 . . . . . . . . . . . . . . . . . . . . . . . . . Subdweller 12 | . . . 12 . . . . . . . . . . . . . . . . . . . . . . . . . Thief 1 | . . . . . . . . . . 1 . . . . . . . . . . . . . . . . . . Surgeon 1 | . . . . . . . . . . . . . . . . . . 1 . . . . . . . . . . Thug 3 | . . . . . . . . . . . . . . . . . . . . . . . 2 . 1 . . . Savage 2 | . . . . . . . . . . . . . . . . . . . . . . . 2 . . . . . Butcher 2 | . . . . . . . . . . . . . . . . . . . . . . . . . 2 . . . Martyr 2 | . . . . . . . . . . . . . . . . . . . . . . 2 . . . . . . Guerrilla 1 | . . . . . . . . . . . . . . . . . . . . . . . . . 1 . . . Mutant 1 | . . . . . . . . . . 1 . . . . . . . . . . . . . . . . . . Best Kill Streak 16 | 2 5 1 5 7 . 1 . 2 3 7 . 4 8 4 6 7 2 16 2 6 4 . 4 2 3 2 6 6 Combat Bots Only 15 | . 5 . 2 3 . 1 . 1 3 7 . 4 5 4 5 7 2 15 2 2 1 . 4 2 3 2 2 4 Max Kills in Single Turn 4 | 1 2 1 2 1 . 1 . 1 1 1 . 1 2 1 2 1 1 4 1 4 1 1 2 1 2 2 1 2 Gunslinging . | . . . . . . . . . . . . . . . . . . . . . . . . . . . . . Exploded 4 | . . . 2 . . . . . . . . . 1 . . . . 4 . . . . 1 . . . . 1 Melee 1 | . . . . . . . . . . . . . . . . . . . . 1 . . 1 . . . . . Uniques/NPCs Destroyed . | . . . . . . . . . . . . . . . . . . . . . . . . . . . . . Combat | -11 -10 -10 -10 -8 -8 -6 -6 -6 -6 -6 -6 -5 -5 -5 -5 -5 -5 -5 -4 -4 -4 -4 -4 -4 -4 -4 -4 -4 -------- Run | Yrd Mat Min Sub Rec Scr Fac Was Fac Low Low Zio Pro Fac Was Fac Upp Upp War Pro Fac Was Fac Gar Fac Ext Cet Arc Hub Hostile Shots Fired 1060 | . 45 . 59 43 . . . 35 7 13 . 18 30 . 106 8 3 32 28 80 . . 283 22 66 19 . 163 Missed 337 | . 10 . 21 8 . . . 20 1 7 . 9 16 . 42 2 2 17 12 29 . . 90 9 16 5 . 21 Hits 723 | . 35 . 38 35 . . . 15 6 6 . 9 14 . 64 6 1 15 16 51 . . 193 13 50 14 . 142 Melee 6 | . . . . 1 . . . . . . . . . . 5 . . . . . . . . . . . . . Projectile 717 | . 35 . 38 34 . . . 15 6 6 . 9 14 . 59 6 1 15 16 51 . . 193 13 50 14 . 142 AOE 1 | . . . 1 . . . . . . . . . . . . . . . . . . . . . . . . . Critical Strikes 40 | . . . 1 2 . . . . . . . 1 . . 5 . . 1 . 3 1 . 9 . 4 2 . 11 Part Disruptions 1 | . . . . . . . . . . . . . . . 1 . . . . . . . . . . . . . Damage Taken 14419 | . 337 . 766 397 . . . 438 101 126 . 173 259 . 1330 96 21 240 218 1109 158 . 3574 187 937 318 54 3580 Core 1758 | . 39 . 110 63 . . . 69 18 . . . 19 . 181 . . 38 55 182 51 . 216 40 146 . . 531 Absorbed by Shields 407 | . . . . . . . . . . . . . . . . . . 30 112 . . . . . 215 50 . . Reduced by Siege Mode 340 | . . . . . . . . . . . . . . . . . . . . . . . 175 . . . . 165 Regen/Repaired (Parts) 792 | . . . . . . . . . . . . . 224 . 80 . . 102 . . 98 . 147 141 . . . . Core Remaining (%) 68 | 100 . . . . 15 . . . . . . 89 . . . . . . 70 . . . . . . . . . Volleys Fired 857 | 5 39 1 47 23 . 24 . 70 8 53 . 40 47 25 124 27 7 10 9 43 13 6 126 18 57 9 4 22 Largest 2 | 2 2 2 2 1 . 1 . 1 1 1 . 1 1 1 1 1 1 1 1 1 1 1 2 1 2 2 2 2 Hottest 136 | 80 136 136 136 120 . 40 . 60 60 60 . 60 60 60 60 60 60 43 60 60 60 60 78 60 112 112 112 112 Shots Fired 1040 | 10 78 2 77 25 . 24 . 71 8 53 . 40 47 26 126 27 7 10 9 44 13 6 163 17 97 17 8 35 Gun 228 | 10 4 . 35 . . . . . . . . . . . . . . . . . . . 120 . 48 . . 11 Cannon 784 | . 74 2 39 25 . 24 . 71 8 53 . 40 47 26 126 27 7 . 9 44 13 6 35 17 46 17 8 20 Launcher 28 | . . . 3 . . . . . . . . . . . . . . 10 . . . . 8 . 3 . . 4 Special . | . . . . . . . . . . . . . . . . . . . . . . . . . . . . . Kinetic 818 | . 40 . 35 . . . . 15 8 53 . 40 47 26 126 27 7 . 9 44 13 6 155 17 94 17 8 31 Thermal 187 | 5 36 2 39 25 . 24 . 56 . . . . . . . . . . . . . . . . . . . . Explosive 3 | . . . 3 . . . . . . . . . . . . . . . . . . . . . . . . . Electromagnetic 26 | 5 2 . . . . . . . . . . . . . . . . 4 . . . . 8 . 3 . . 4 Entropic 6 | . . . . . . . . . . . . . . . . . . 6 . . . . . . . . . . Robot Hit Streak 26 | 3 10 1 18 14 . 5 . 7 5 10 . 12 7 11 8 8 7 3 5 6 10 3 26 5 14 6 8 7 Robot Miss Streak 7 | 2 7 2 2 2 . 1 . 3 1 4 . 4 4 6 5 4 4 1 5 6 4 2 3 5 5 1 2 5 Penetration Max 1 | . . . . . . . . . . . . . . . . . . . . . . . 1 . 1 1 . 1 Secondary Targets 2 | . . . . . . . . . . . . . . . . . . . . . . . 2 . . . . . Max Gunslinging Chain 1 | . . . . . . . . . . . . . . . . . . . . . . . 1 . . . . . Shots Hit Robots 705 | 6 37 1 49 19 . 6 . 24 3 41 . 34 34 23 103 11 6 2 8 46 11 6 123 9 55 11 19 18 Core Hits 520 | 3 19 1 21 9 . 3 . 16 3 28 . 30 33 18 81 9 6 25 4 39 8 7 70 9 45 6 9 18 Critical Kills 34 | . . . 4 2 . . . 2 . . . . . . . . . . . . . . 3 . 13 4 2 4 Critical Parts Destroyed 34 | . . . . . . . . . . . . . . . . . . . . . . . 7 . 9 5 2 11 Critical Strikes 164 | . 2 . 4 2 . . . 3 . 4 . 8 4 2 20 6 2 . 4 12 . 4 29 1 27 11 4 15 Meltdown 8 | . . . 4 2 . . . 2 . . . . . . . . . . . . . . . . . . . . Destroy 63 | . . . . . . . . . . . . . . . . . . . . . . . 10 . 23 11 4 15 Blast 79 | . 2 . . . . . . 1 . 4 . 8 4 2 20 6 2 . 4 7 . 4 10 1 4 . . . Impale 9 | . . . . . . . . . . . . . . . . . . . . . . . 9 . . . . . Sunder 5 | . . . . . . . . . . . . . . . . . . . . 5 . . . . . . . . Melee Attacks 95 | . . . . . . . . . . . . . . . . . . 4 . 12 . . 64 . 2 . 13 . Impact . | . . . . . . . . . . . . . . . . . . . . . . . . . . . . . Slashing 13 | . . . . . . . . . . . . . . . . . . . . . . . . . . . 13 . Piercing 66 | . . . . . . . . . . . . . . . . . . . . . . . 64 . 2 . . . Entropic 16 | . . . . . . . . . . . . . . . . . . 4 . 12 . . . . . . . . Sneak Attacks 14 | . . . . . . . . . . . . . . . . . . . . 2 . . 1 . . . 11 . Combat Hostiles . | . . . . . . . . . . . . . . . . . . . . . . . . . . . . . Follow-up Attacks . | . . . . . . . . . . . . . . . . . . . . . . . . . . . . . Damage Inflicted 39193 | 68 831 21 1424 1210 . 274 . 1328 79 1596 . 1737 2195 1746 5428 601 385 4537 333 3401 879 353 5309 390 2384 285 1348 1051 Guns 3213 | 68 21 . 350 . . . . . . . . . . . . . . . . . . . 1867 . 725 . . 182 Cannons 25342 | . 799 21 861 1209 . 274 . 1237 79 1596 . 1737 1907 1746 5428 583 385 . 333 2013 879 353 1588 390 1218 285 97 324 Explosions 7343 | . . . 213 . . . . 91 . . . . 288 . . 18 . 4537 . 312 . . 939 . 404 . . 541 Melee 3242 | . . . . . . . . . . . . . . . . . . . . 1076 . . 915 . . . 1251 . Ramming 53 | . 11 . . 1 . . . . . . . . . . . . . . . . . . . . 37 . . 4 Kinetic 24854 | . 328 . 350 . . . . 461 79 1596 . 1737 1907 1746 5428 583 385 . 333 2013 879 353 3455 390 1943 285 97 506 Thermal 4376 | 44 492 21 861 1209 . 274 . 776 . . . . . . . 18 . . . 312 . . 311 . . . . 58 Explosive 592 | . . . 213 . . . . 91 . . . . 288 . . . . . . . . . . . . . . . Electromagnetic 1994 | 24 . . . . . . . . . . . . . . . . . 455 . . . . 628 . 404 . . 483 Impact . | . . . . . . . . . . . . . . . . . . . . . . . . . . . . . Slashing 1251 | . . . . . . . . . . . . . . . . . . . . . . . . . . . 1251 . Piercing 915 | . . . . . . . . . . . . . . . . . . . . . . . 915 . . . . . Entropic 5158 | . . . . . . . . . . . . . . . . . . 4082 . 1076 . . . . . . . . Highest Corruption 20 | . 2 2 2 6 . . 5 5 . . . . 7 15 15 4 . . . 5 5 5 5 14 14 14 14 20 Average Corruption 5 | . 1 2 2 3 . . 5 4 . . . . 2 8 5 2 . . . 3 5 5 5 10 14 14 10 9 Corruption Purged 48 | . . . . . . . . 5 . . . . 9 . 16 4 . . . . . . . . . . 14 . Corruption Blocked . | . . . . . . . . . . . . . . . . . . . . . . . . . . . . . Effects 262 | . 6 7 14 19 . . 1 11 . . . . 1 5 26 4 . . . 9 3 1 62 11 54 16 11 1 Message Errors 74 | . 1 2 6 4 . . 1 2 . . . . 1 1 10 2 . . . 2 1 . 17 3 12 3 5 1 Matter Fused 54 | . 1 . 3 3 . . . 3 . . . . . 1 4 . . . . 4 . 1 11 1 14 3 5 . Heat Flow Errors 33 | . 1 1 1 4 . . . 3 . . . . . . 4 1 . . . 2 . . 8 . 5 3 . . Energy Discharges 34 | . 1 3 1 3 . . . 1 . . . . . 1 3 1 . . . . 1 . 8 2 9 . . . Parts Rejected 4 | . . . . . . . . . . . . . . . . . . . . . . . . 1 2 1 . . Parts Fused 2 | . . . 1 . . . . . . . . . . . . . . . . . . . . . 1 . . . Data Loss (minor) 19 | . 1 . 1 2 . . . . . . . . . . 1 . . . . . . . 5 3 4 2 . . Data Loss (major) 16 | . 1 1 . 1 . . . . . . . . . . 2 . . . . . 1 . 6 . 2 1 1 . Misfires 15 | . . . 1 2 . . . 1 . . . . . 1 2 . . . . 1 . . 4 . 3 . . . Alerts 3 | . . . . . . . . 1 . . . . . 1 . . . . . . . . . . 1 . . . Misdirections 3 | . . . . . . . . . . . . . . . . . . . . . . . . 1 . 2 . . Weapon Failures 5 | . . . . . . . . . . . . . . . . . . . . . . . 3 . 1 1 . . Overload Shots 2 | . . . . 2 . . . . . . . . . . . . . . . . . . . . . . . . Overflow Damage 1268 | . 9 . 1 186 . 11 . 76 . 38 . 16 . . 137 9 13 100 . 236 . . 25 . 10 . 387 14 Projectiles 524 | . 9 . . 186 . 11 . 76 . 38 . 16 . . 122 9 13 . . 33 . . 11 . . . . . Explosions 192 | . . . 1 . . . . . . . . . . . 15 . . 100 . 62 . . . . . . . 14 Melee 552 | . . . . . . . . . . . . . . . . . . . . 141 . . 14 . 10 . 387 . Knockbacks 77 | . 4 . . . . . . 2 . 4 . 4 3 . 21 . 1 . 1 14 . 3 7 3 2 1 . 7 Impact . | . . . . . . . . . . . . . . . . . . . . . . . . . . . . . Kinetic 70 | . 4 . . . . . . 2 . 3 . 4 3 . 18 . 1 . 1 14 . 3 7 3 2 1 . 4 Secondary 7 | . . . . . . . . . . 1 . . . . 3 . . . . . . . . . . . . 3 Self-Inflicted Damage 263 | . 2 . . . . . . 143 . . . . . . 53 . . . . . . . 46 . 19 . . . Shots 7 | . . . . . . . . 2 . . . . . . 1 . . . . . . . 3 . 1 . . . Rammed 11 | . 4 . . 1 . . . . . . . . . . . . . . . . . . . . 2 . . 4 Targets Rammed 11 | . 4 . . 1 . . . . . . . . . . . . . . . . . . . . 2 . . 4 Kicked . | . . . . . . . . . . . . . . . . . . . . . . . . . . . . . Crushed . | . . . . . . . . . . . . . . . . . . . . . . . . . . . . . Highest Temperature 383 | 90 179 80 188 269 . 18 . 168 60 120 . 105 138 136 383 203 54 4 162 254 32 4 275 24 244 213 72 306 Average Temperature 48 | 46 43 27 40 93 . 14 . 33 24 33 . 34 32 69 40 61 19 4 82 46 11 4 59 8 46 63 31 161 Received Heat Transfer 2044 | . 63 . 120 18 . . . 48 18 54 . 90 117 . 216 . . 31 . 9 27 . 732 . 189 . . 312 Effects 2 | . . . . 1 . . . . . . . . . . . . . . . 1 . . . . . . . . Energy Bleed 2 | . . . . 1 . . . . . . . . . . . . . . . 1 . . . . . . . . Siege Activations 5 | . . . . . . . . . . . . . . . . . . . . . . . 2 . 1 . . 2 Total Turns 93 | . . . . . . . . . . . . . . . . . . . . . . . 55 . 10 . . 28 Longest Duration 45 | . . . . . . . . . . . . . . . . . . . . . . . 45 . 10 . . 15 Martial Activations . | . . . . . . . . . . . . . . . . . . . . . . . . . . . . . Shielding Activations . | . . . . . . . . . . . . . . . . . . . . . . . . . . . . . Robots Disrupted . | . . . . . . . . . . . . . . . . . . . . . . . . . . . . . Combat Hostiles . | . . . . . . . . . . . . . . . . . . . . . . . . . . . . . Robots Corrupted 5 | . . . . . . . . . . . . . . . . . . 2 . . . . 1 . . . . 2 Combat Hostiles 3 | . . . . . . . . . . . . . . . . . . 2 . . . . . . . . . 1 Parts Fried 10 | . . . . . . . . . . . . . . . . . . 2 . . . . 1 . . . . 7 Impact Corruptions 2 | . . . . . . . . . . . . . . . 1 . . . . . . . . . 1 . . . Robots Melted 8 | . . . 4 2 . . . 2 . . . . . . . . . . . . . . . . . . . . Combat Hostiles 5 | . . . 4 1 . . . . . . . . . . . . . . . . . . . . . . . . Parts Melted 9 | . 3 . 4 2 . . . . . . . . . . . . . . . . . . . . . . . . Heat Transferred 2532 | 100 901 37 814 . . . . . . . . . . . . 80 . . . 250 . . 300 . . . . 50 Parts Sabotaged . | . . . . . . . . . . . . . . . . . . . . . . . . . . . . . Parts Stolen . | . . . . . . . . . . . . . . . . . . . . . . . . . . . . . Parts Stripped . | . . . . . . . . . . . . . . . . . . . . . . . . . . . . . Power Chain Reactions 2 | . . . . . . . . . . . . . . . . . . . . . . . 1 . . . . 1 Alert | -11 -10 -10 -10 -8 -8 -6 -6 -6 -6 -6 -6 -5 -5 -5 -5 -5 -5 -5 -4 -4 -4 -4 -4 -4 -4 -4 -4 -4 ------- Run | Yrd Mat Min Sub Rec Scr Fac Was Fac Low Low Zio Pro Fac Was Fac Upp Upp War Pro Fac Was Fac Gar Fac Ext Cet Arc Hub Maximum Alert Level 5 | . . . . . . . . . . . . . 2 . 3 . . . . 2 1 . 5 4 3 2 1 3 Low Security (%) 54 | 100 100 100 . 100 . 100 100 100 . . . . 73 100 16 . . . . 76 27 100 1 . 36 . 50 23 Level 1 14 | . . . . . . . . . . . . . 8 . 24 . . . . 12 72 . 12 . 30 8 49 8 Level 2 10 | . . . . . . . . . . . . . 18 . 30 . . . . 10 . . 1 . 28 91 . 65 Level 3 8 | . . . . . . . . . . . . . . . 29 . . . . . . . 12 99 4 . . 2 Level 4 7 | . . . . . . . . . . . . . . . . . . . . . . . 43 . . . . . Level 5 4 | . . . . . . . . . . . . . . . . . . . . . . . 28 . . . . . High Security . | . . . . . . . . . . . . . . . . . . . . . . . . . . . . . Max Security . | . . . . . . . . . . . . . . . . . . . . . . . . . . . . . Peak Influence 1945 | 10 111 13 . 135 . 58 . 85 . . . . 565 198 992 . . . . 420 261 154 1945 1127 724 610 392 708 Initial 1020 | . . 13 . . . . . . . . . . 39 192 117 . . . . 28 147 150 93 1020 434 398 220 . Average 384 | 4 22 1 . 57 . 22 . 24 . . . . 166 185 492 . . . . 200 211 144 1263 973 322 508 196 462 Influence Increases 11706 | 10 337 5 130 392 . 230 . 463 120 300 . 382 778 36 1717 140 75 486 95 752 148 4 2002 308 1222 372 252 950 Destroy 0b10 Robot/C 4940 | . 160 . 100 120 . 20 . 80 60 260 . 220 240 . 920 140 60 320 40 200 . . 760 80 580 160 80 340 Destroy 0b10 Robot/NC 495 | 10 55 5 . 25 . 10 . 45 . . . 20 40 . 55 . 5 15 . 70 . . 30 5 20 10 45 30 Destroy Leader 616 | . 50 . . . . 12 . 38 . 10 . 20 44 . 174 . 10 . 10 70 . . 30 22 34 . . 92 Allied During Kill 1613 | . . . . . . 2 . . . . . 47 . . 40 . . 16 . . . . 393 . 436 170 125 384 Successful Hack 439 | . 24 . . 4 . 65 . 73 . . . . 10 . 115 . . . . 113 . . 10 13 6 6 . . Select Force Hacks 350 | . 30 . . 240 . . . . . . . . 30 . . . . . . . . . . . . . . 50 Disable Machine 525 | . 15 . . . . 30 . 30 . . . . 75 . 120 . . . . 150 . . 75 . 30 . . . Anti-Garrison Action 450 | . . . . . . . . . . . . . . . . . . . . . . . 450 . . . . . Destroy Structure 963 | . 3 . . 3 . 16 . 62 . . . . 114 36 188 . . . . 104 148 4 149 28 26 26 2 54 Partial Spotted 120 | . . . . . . . . . . . . . 15 . 60 . . . . 30 . . . . 15 . . . Lose Combat Pursuer 1095 | . . . 30 . . 75 . 135 60 30 . 75 210 . 45 . . 135 45 15 . . 105 60 75 . . . Miscellaneous 100 | . . . . . . . . . . . . . . . . . . . . . . . . 100 . . . . Influence Decreases 11136 | 10 303 39 130 367 25 230 . 403 173 307 . 319 291 418 999 582 205 452 398 377 353 85 191 1365 1398 534 802 380 Entered New Map 3998 | . . 21 . . 25 . . . 23 2 . . 24 358 51 328 85 314 348 17 273 65 41 925 454 314 330 . Time Decay 5316 | 10 303 18 120 357 . 228 . 383 150 295 . 299 267 60 538 254 120 128 50 310 70 20 . 140 494 160 472 70 Lost Part 350 | . . . 10 10 . . . . . 10 . . . . 70 . . 10 . 50 . . 70 . 30 . . 90 Lost Ally 572 | . . . . . . 2 . 20 . . . 20 . . 40 . . . . . 10 . 80 . 120 60 . 220 Purge Threat 900 | . . . . . . . . . . . . . . . 300 . . . . . . . . 300 300 . . . Squads Dispatched 73 | . 3 . . . . 9 . 14 . . . 2 6 . 17 . . . . 4 . . . 10 . . . 8 Investigation 40 | . 3 . . . . 7 . 7 . . . . 3 . 9 . . . . 3 . . . 7 . . . 1 Extermination 11 | . . . . . . 1 . 4 . . . . 1 . 3 . . . . 1 . . . 1 . . . . Reinforcement 16 | . . . . . . 1 . 3 . . . . 2 . 3 . . . . . . . . 2 . . . 5 Assault 3 | . . . . . . . . . . . . 2 . . 1 . . . . . . . . . . . . . Garrison 3 | . . . . . . . . . . . . . . . 1 . . . . . . . . . . . . 2 Intercept . | . . . . . . . . . . . . . . . . . . . . . . . . . . . . . Searches Triggered . | . . . . . . . . . . . . . . . . . . . . . . . . . . . . . Construction Impeded 3 | . . . . . . . . . . . . . 1 . 1 . . . . . . . . . . . . 1 Haulers Reinforced . | . . . . . . . . . . . . . . . . . . . . . . . . . . . . . Active Scanning Responses . | . . . . . . . . . . . . . . . . . . . . . . . . . . . . . Cargo Convoy Interrupts 1 | . . . . . . . . 1 . . . . . . . . . . . . . . . . . . . . Stealth | -11 -10 -10 -10 -8 -8 -6 -6 -6 -6 -6 -6 -5 -5 -5 -5 -5 -5 -5 -4 -4 -4 -4 -4 -4 -4 -4 -4 -4 --------- Run | Yrd Mat Min Sub Rec Scr Fac Was Fac Low Low Zio Pro Fac Was Fac Upp Upp War Pro Fac Was Fac Gar Fac Ext Cet Arc Hub Distress Signals 18 | . 1 . . . . 1 . 1 . . . . 3 . 2 . . 1 . 1 . . . . 4 2 . 2 Communications Jammed . | . . . . . . . . . . . . . . . . . . . . . . . . . . . . . Distress Signals . | . . . . . . . . . . . . . . . . . . . . . . . . . . . . . Times Spotted 442 | . 21 . 18 5 . 9 6 26 7 19 . 19 32 6 55 5 1 39 10 16 5 . 44 11 33 10 9 36 Peak Tracking Total 18 | . 8 . 5 3 . 3 6 4 4 9 . 7 8 3 7 3 1 7 8 3 3 . 7 6 5 5 2 18 Tactical Retreats 31 | . . . 1 . . 3 . 5 2 1 . 3 4 . 1 . . 4 1 1 . . 2 1 2 . . . Traps | -11 -10 -10 -10 -8 -8 -6 -6 -6 -6 -6 -6 -5 -5 -5 -5 -5 -5 -5 -4 -4 -4 -4 -4 -4 -4 -4 -4 -4 ------- Run | Yrd Mat Min Sub Rec Scr Fac Was Fac Low Low Zio Pro Fac Was Fac Upp Upp War Pro Fac Was Fac Gar Fac Ext Cet Arc Hub Traps Triggered 25 | . 4 . 4 . . 1 . 1 . . . . 3 . 2 . . . . 3 . . 2 1 4 . . . Indirectly . | . . . . . . . . . . . . . . . . . . . . . . . . . . . . . Trap Hack Attempts . | . . . . . . . . . . . . . . . . . . . . . . . . . . . . . Triggered . | . . . . . . . . . . . . . . . . . . . . . . . . . . . . . Disarmed . | . . . . . . . . . . . . . . . . . . . . . . . . . . . . . Reprogrammed . | . . . . . . . . . . . . . . . . . . . . . . . . . . . . . Reused 2 | . . . . . . . . . . . . 2 . . . . . . . . . . . . . . . . Traps Extracted . | . . . . . . . . . . . . . . . . . . . . . . . . . . . . . Installed 2 | . . . . . . . . . . . . 2 . . . . . . . . . . . . . . . . Triggered 2 | . . . . . . . . . . . . 2 . . . . . . . . . . . . . . . . Most Traps Carried 2 | . . . . . . . . . . . . 2 . . . . . . . . . . . . . . . . Machines | -11 -10 -10 -10 -8 -8 -6 -6 -6 -6 -6 -6 -5 -5 -5 -5 -5 -5 -5 -4 -4 -4 -4 -4 -4 -4 -4 -4 -4 ---------- Run | Yrd Mat Min Sub Rec Scr Fac Was Fac Low Low Zio Pro Fac Was Fac Upp Upp War Pro Fac Was Fac Gar Fac Ext Cet Arc Hub Machines Disabled 44 | . 1 . 1 . . 2 . 2 . . . . 5 . 8 4 . 2 . 10 . . 7 . 2 . . . Max in Single Turn 7 | . 1 . 1 . . 1 . 2 . . . . 1 . 2 2 . 1 . 7 . . 1 . 1 . . . Garrison Access 9 | . . . . . . 3 . 3 . . . . . . 2 . . . . 1 . . . . . . . . Garrison Relay 2 | . . . . . . . . . . . . . . . . . . . . . . . 2 . . . . . Network Hub 1 | . . . . . . . . . . . . . . . . . . . . . . . . . . . . 1 Machines Repaired . | . . . . . . . . . . . . . . . . . . . . . . . . . . . . . Machines Dismantled 1 | . . . . . . . . . . . . . . . . . . . . . . . . . 1 . . . Machines Sabotaged 1 | . . . . . . . . . . . . . . . . . . . . . . . . . . . . 1 Overloaded Fab Kills . | . . . . . . . . . . . . . . . . . . . . . . . . . . . . . Hacking | -11 -10 -10 -10 -8 -8 -6 -6 -6 -6 -6 -6 -5 -5 -5 -5 -5 -5 -5 -4 -4 -4 -4 -4 -4 -4 -4 -4 -4 --------- Run | Yrd Mat Min Sub Rec Scr Fac Was Fac Low Low Zio Pro Fac Was Fac Upp Upp War Pro Fac Was Fac Gar Fac Ext Cet Arc Hub Machines Accessed 148 | . 9 . 2 14 3 17 . 24 . . . . 12 . 21 . 1 7 . 14 . 1 1 8 11 1 . 2 Terminals 78 | . 8 . . 6 . 8 . 15 . . . . 7 . 9 . . . . 7 . . 1 4 11 1 . 1 Fabricators 7 | . . . . . . . . 2 . . . . 1 . 2 . . . . 2 . . . . . . . . Repair Stations 5 | . . . . . . . . . . . . . 1 . 2 . . . . 1 . . . 1 . . . . Recycling Units 27 | . 1 . . 8 . 6 . 3 . . . . 2 . 4 . . . . 1 . . . 2 . . . . Scanalyzers 6 | . . . . . . . . 1 . . . . . . 2 . . . . 2 . . . 1 . . . . Garrison Access 12 | . . . . . . 3 . 3 . . . . 1 . 2 . . . . 1 . 1 . . . . . 1 Total Hacks 450 | . 28 . 14 36 31 39 . 75 . . . . 40 . 71 . 1 19 . 40 . 1 4 24 20 1 . 6 Successful 291 | . 16 . 14 17 31 24 . 47 . . . . 18 . 45 . 1 19 . 28 . 1 1 14 12 1 . 2 Failed 156 | . 11 . . 18 . 15 . 28 . . . . 22 . 26 . . . . 12 . . 3 9 8 . . 4 Catastrophic 28 | . . . . . . 3 . 4 . . . . 7 . 7 . . . . 2 . . 1 2 2 . . . Database Lockouts 3 | . 1 . . 1 . . . . . . . . . . . . . . . . . . . 1 . . . . Manual 238 | . 24 . . 28 . 32 . 52 . . . . 22 . 31 . . . . 20 . . 2 13 8 1 . 5 Terminals 251 | . 27 . . 19 . 26 . 57 . . . . 27 . 26 . . . . 29 . . 4 12 20 1 . 3 Fabricators 22 | . . . . . . . . 7 . . . . 6 . 5 . . . . 4 . . . . . . . . Repair Stations 13 | . . . . . . . . . . . . . 3 . 5 . . . . 1 . . . 4 . . . . Recycling Units 50 | . 1 . . 17 . 8 . 5 . . . . 3 . 11 . . . . 1 . . . 4 . . . . Scanalyzers 33 | . . . . . . . . 3 . . . . . . 22 . . . . 4 . . . 4 . . . . Garrison Access 16 | . . . . . . 5 . 3 . . . . 1 . 2 . . . . 1 . 1 . . . . . 3 Terminal Hacks 131 | . 6 . 14 1 31 5 . 16 . . . . 4 . 9 . 1 19 . 9 . . 1 5 9 1 . . Record 52 | . . . 13 . 25 . . . . . . . . . . . . 14 . . . . . . . . . . Part Schematic 12 | . . . . . . 2 . 3 . . . . . . 3 . . . . 3 . . . . 1 . . . Robot Analysis 10 | . 1 . . 1 6 . . . . . . . . . . . . . . . . . . 2 . . . . Prototype ID Bank 8 | . 2 . . . . . . 2 . . . . . . . . . 4 . . . . . . . . . . Open Door 7 | . . . . . . . . . . . . . . . . . 1 1 . . . . . . 4 1 . . Branch Access Points 3 | . . . . . . . . 1 . . . . 1 . 1 . . . . . . . . . . . . . Terminal Index 4 | . . . . . . 1 . 1 . . . . 1 . . . . . . 1 . . . . . . . . Fabricator Index 1 | . . . . . . . . 1 . . . . . . . . . . . . . . . . . . . . Repair Station Index 1 | . . . . . . . . 1 . . . . . . . . . . . . . . . . . . . . Recycling Unit Index 1 | . 1 . . . . . . . . . . . . . . . . . . . . . . . . . . . Scanalyzer Index 2 | . . . . . . . . 1 . . . . . . . . . . . 1 . . . . . . . . Alert Level 3 | . . . . . . . . 1 . . . . . . 1 . . . . 1 . . . . . . . . Unreport Threat 7 | . . . . . . . . . . . . . . . 2 . . . . . . . . 3 2 . . . Locate Traps 3 | . . . . . . . . . . . . . 2 . . . . . . 1 . . . . . . . . Extermination Status 1 | . . . . . . . . . . . . . . . . . . . . . . . . . 1 . . . Recall Investigation 3 | . 1 . . . . . . 2 . . . . . . . . . . . . . . . . . . . . Recall Extermination 2 | . . . . . . . . 2 . . . . . . . . . . . . . . . . . . . . Registered Components 2 | . 1 . . . . 1 . . . . . . . . . . . . . . . . . . . . . . Registered Prototypes 1 | . . . . . . 1 . . . . . . . . . . . . . . . . . . . . . . Zone Layout 6 | . . . . . . . . 1 . . . . . . 2 . . . . 2 . . . . 1 . . . Patrol Navigation 1 | . . . . . . . . . . . . . . . . . . . . . . . 1 . . . . . Proto ID Catalog 1 | . . . 1 . . . . . . . . . . . . . . . . . . . . . . . . . Fabricator Hacks 15 | . . . . . . . . 5 . . . . 1 . 5 . . . . 4 . . . . . . . . Network Status 1 | . . . . . . . . 1 . . . . . . . . . . . . . . . . . . . . Load Schematic 7 | . . . . . . . . 2 . . . . 1 . 2 . . . . 2 . . . . . . . . Build 7 | . . . . . . . . 2 . . . . . . 3 . . . . 2 . . . . . . . . Repair Station Hacks 9 | . . . . . . . . . . . . . 2 . 4 . . . . 1 . . . 2 . . . . Scan Component 5 | . . . . . . . . . . . . . 1 . 2 . . . . 1 . . . 1 . . . . Repair 4 | . . . . . . . . . . . . . 1 . 2 . . . . . . . . 1 . . . . Recycling Unit Hacks 6 | . . . . 2 . . . 1 . . . . 1 . 1 . . . . . . . . 1 . . . . Retrieve Components 6 | . . . . 2 . . . 1 . . . . 1 . 1 . . . . . . . . 1 . . . . Scanalyzer 26 | . . . . . . . . 3 . . . . . . 17 . . . . 4 . . . 2 . . . . Insert Component 11 | . . . . . . . . 1 . . . . . . 8 . . . . 1 . . . 1 . . . . Analyze 6 | . . . . . . . . 1 . . . . . . 5 . . . . . . . . . . . . . Retrieve Study 9 | . . . . . . . . 1 . . . . . . 4 . . . . 3 . . . 1 . . . . Garrison Access Hacks 11 | . . . . . . 3 . 3 . . . . . . 2 . . . . 1 . 1 . . . . . 1 Unlock Access 2 | . . . . . . . . . . . . . . . . . . . . . . 1 . . . . . 1 Seal Access 9 | . . . . . . 3 . 3 . . . . . . 2 . . . . 1 . . . . . . . . Unauthorized Hacks 93 | . 10 . . 14 . 16 . 19 . . . . 10 . 7 . . . . 9 . . . 4 3 . . 1 Terminals 66 | . 9 . . 6 . 10 . 16 . . . . 8 . 4 . . . . 8 . . . 1 3 . . 1 Track 6 | . . . . . . . . 1 . . . . 1 . 2 . . . . 1 . . . . 1 . . . Assimilate 7 | . 1 . . . . . . 5 . . . . . . . . . . . . . . . 1 . . . . Botnet 23 | . 2 . . 1 . 4 . 7 . . . . 3 . 2 . . . . 3 . . . . 1 . . . Disrupt 1 | . . . . . . . . . . . . . . . . . . . . . . . . . 1 . . . Operators 3 | . . . . . . 1 . . . . . . 1 . . . . . . 1 . . . . . . . . Skim 25 | . 6 . . 5 . 5 . 3 . . . . 3 . . . . . . 3 . . . . . . . . Sabotage 1 | . . . . . . . . . . . . . . . . . . . . . . . . . . . . 1 Fabricators . | . . . . . . . . . . . . . . . . . . . . . . . . . . . . . Repair Stations 1 | . . . . . . . . . . . . . . . . . . . . . . . . 1 . . . . Patch 1 | . . . . . . . . . . . . . . . . . . . . . . . . 1 . . . . Recycling Units 26 | . 1 . . 8 . 6 . 3 . . . . 2 . 3 . . . . 1 . . . 2 . . . . Tunnel 10 | . 1 . . 8 . . . . . . . . 1 . . . . . . . . . . . . . . . Fedlink 16 | . . . . . . 6 . 3 . . . . 1 . 3 . . . . 1 . . . 2 . . . . Scanalyzers . | . . . . . . . . . . . . . . . . . . . . . . . . . . . . . Garrison Access . | . . . . . . . . . . . . . . . . . . . . . . . . . . . . . Data Cores Recovered 1 | . . . . . . . . . . . . . . . 1 . . . . . . . . . . . . . Used . | . . . . . . . . . . . . . . . . . . . . . . . . . . . . . Hacking Detections 92 | . 7 . . 8 . 10 . 14 . . . . 8 . 15 . . . . 10 . 1 1 6 10 . . 2 Full Trace Events 20 | . 1 . . . . 1 . 4 . . . . 1 . 6 . . . . 2 . . 1 4 . . . . Feedback Events 1 | . . . . . . . . . . . . . . . . . . . . . . . . 1 . . . . Corruption 1 | . . . . . . . . . . . . . . . . . . . . . . . . 1 . . . . Feedback Blocked . | . . . . . . . . . . . . . . . . . . . . . . . . . . . . . Robot Schematics Acquired 3 | . . . . . . . . . . . 3 . . . . . . . . . . . . . . . . . Robots Built 2 | . . . . . . . . . . . . . . . 2 . . . . . . . . . . . . . Authchips . | . . . . . . . . . . . . . . . . . . . . . . . . . . . . . Time 56 | . . . . . . . . . . . . . . . 56 . . . . . . . . . . . . . Total Robot Build Rating 12 | . . . . . . . . . . . . . . . 12 . . . . . . . . . . . . . Part Schematics Acquired 32 | . . . . . . 2 . 4 . . 14 . . . 8 . . . . 3 . . . . 1 . . . Parts Built 5 | . . . . . . . . 2 . . . . . . 1 . . . . 2 . . . . . . . . Authchips . | . . . . . . . . . . . . . . . . . . . . . . . . . . . . . Time 531 | . . . . . . . . 103 . . . . . . 260 . . . . 168 . . . . . . . . Total Part Build Rating 29 | . . . . . . . . 11 . . . . . . 6 . . . . 12 . . . . . . . . Part Studies Acquired 9 | . . . . . . . . 1 . . . . . . 4 . . . . 3 . . . 1 . . . . Parts Repaired 4 | . . . . . . . . . . . . . 1 . 2 . . . . . . . . 1 . . . . Time 296 | . . . . . . . . . . . . . 89 . 151 . . . . . . . . 56 . . . . Parts Recycled . | . . . . . . . . . . . . . . . . . . . . . . . . . . . . . Recycled Matter . | . . . . . . . . . . . . . . . . . . . . . . . . . . . . . Retrieved Matter . | . . . . . . . . . . . . . . . . . . . . . . . . . . . . . Retrieved Components 20 | . . . . 3 . . . 3 . . . . 3 . 9 . . . . . . . . 2 . . . . Parts Scanalyzed 7 | . . . . . . . . 1 . . . . . . 5 . . . . . . . . 1 . . . . Part Schematics Acquired 6 | . . . . . . . . 1 . . . . . . 5 . . . . . . . . . . . . . Parts Damaged 2 | . . . . . . . . . . . . . . . 2 . . . . . . . . . . . . . Bothacking | -11 -10 -10 -10 -8 -8 -6 -6 -6 -6 -6 -6 -5 -5 -5 -5 -5 -5 -5 -4 -4 -4 -4 -4 -4 -4 -4 -4 -4 ------------ Run | Yrd Mat Min Sub Rec Scr Fac Was Fac Low Low Zio Pro Fac Was Fac Upp Upp War Pro Fac Was Fac Gar Fac Ext Cet Arc Hub Used RIF Installer 1 | . . . . . . . . . . . . . . . . . . . . . . . 1 . . . . . Robots Hacked . | . . . . . . . . . . . . . . . . . . . . . . . . . . . . . Non-combat . | . . . . . . . . . . . . . . . . . . . . . . . . . . . . . Combat . | . . . . . . . . . . . . . . . . . . . . . . . . . . . . . Robot Hacks Applied . | . . . . . . . . . . . . . . . . . . . . . . . . . . . . . Relay Couplers Released 14 | . . . . . . . . . . . . . . . 4 . . . . . . . 10 . . . . . Machine Destruction 10 | . . . . . . . . . . . . . . . . . . . . . . . 10 . . . . . Programmers 4 | . . . . . . . . . . . . . . . 4 . . . . . . . . . . . . . Attached 1 | . . . . . . . . . . . . . . . . . . . . . . . . . 1 . . . Fabnet Peak Effective % . | . . . . . . . . . . . . . . . . . . . . . . . . . . . . . Robots Rewired 23 | . . . . . . 1 . . . 6 . . . . . . . 2 . . . . 2 . 12 . . . Allies Hacked 1 | . . . . . . . . . . . . . . . 1 . . . . . . . . . . . . . Hacks Repelled . | . . . . . . . . . . . . . . . . . . . . . . . . . . . . . Allies | -11 -10 -10 -10 -8 -8 -6 -6 -6 -6 -6 -6 -5 -5 -5 -5 -5 -5 -5 -4 -4 -4 -4 -4 -4 -4 -4 -4 -4 -------- Run | Yrd Mat Min Sub Rec Scr Fac Was Fac Low Low Zio Pro Fac Was Fac Upp Upp War Pro Fac Was Fac Gar Fac Ext Cet Arc Hub Total Allies 61 | . 1 1 . . . 1 . 3 . 6 . . . . 3 . . 2 . . 18 . 2 . 19 5 . . Largest Group 18 | . 1 1 . . . 1 . 1 . 6 6 6 . . 2 . . 2 1 . 18 11 10 . 12 13 13 12 Highest-Rated Group 932 | . 10 31 . . . 32 . 26 . 168 161 161 . . 108 . . 128 64 . 638 461 475 . 652 932 932 786 Highest-Rated Ally 159 | . 10 31 . . . 32 . 26 . 30 30 30 . . 54 . . 64 64 . 50 50 116 . 159 159 146 96 Initial UFD Resources 93 | . . . . . . 24 46 46 52 52 52 56 56 66 66 74 74 74 77 77 87 87 87 87 93 93 93 93 Total Orders 21 | . 1 . . . . 1 . 1 . 7 . 1 . . 2 . . 3 . . . . 5 . . . . . STAY 14 | . 1 . . . . 1 . 1 . 4 . 1 . . 1 . . 2 . . . . 3 . . . . . FOLLOW 7 | . . . . . . . . . . 3 . . . . 1 . . 1 . . . . 2 . . . . . Ally Attacks 427 | . . . . . . 5 . . . 26 . 9 . . 17 . . . . . 65 . 103 . 45 49 9 99 Total Damage 15853 | . . . . . . 200 . . . 544 . 135 . . 986 . . . . . 4501 . 3297 . 1557 1302 377 2954 Kills 70 | . . . . . . . . . . 1 . . . . 7 . . . . . 10 . 18 . 12 6 2 14 Allies Corrupted 6 | . . . . . . . . . . . . . . . . . . . . . . . 1 . . . . 5 Allies Melted 2 | . . . . . . . . . . . . 1 . . . . . 1 . . . . . . . . . . Intel | -11 -10 -10 -10 -8 -8 -6 -6 -6 -6 -6 -6 -5 -5 -5 -5 -5 -5 -5 -4 -4 -4 -4 -4 -4 -4 -4 -4 -4 ------- Run | Yrd Mat Min Sub Rec Scr Fac Was Fac Low Low Zio Pro Fac Was Fac Upp Upp War Pro Fac Was Fac Gar Fac Ext Cet Arc Hub Active Infowar (turns) 11210 | . 804 . . . . 670 42 1533 315 716 612 1040 629 123 1539 558 248 662 30 421 83 . 86 256 661 . 6 176 Optics 7953 | . . . . . . . . 1511 315 716 612 1040 629 123 1539 558 248 662 . . . . . . . . . . Sensors 8485 | . . . . . . 670 42 1415 315 716 612 1040 629 123 1281 . . . . 401 83 . 59 256 661 . 6 176 Terrain 804 | . 804 . . . . . . . . . . . . . . . . . . . . . . . . . . . Structural 513 | . . . . . . . . . . . . . . . . . . 327 . . . . . 61 125 . . . Machine Analysis 27 | . . . . . . . . . . . . . . . . . . . . . . . 27 . . . . . Cloaking 30 | . . . . . . . . . . . . . . . . . . . 30 . . . . . . . . . Jamming 20 | . . . . . . . . . . . . . . . . . . . . 20 . . . . . . . . Robot Analysis Total 9 | . 1 . . 1 6 . . . . . . . . . . . . . . . . . . 1 . . . . Derelict Logs Recovered 17 | . . 1 2 . 1 . . . 1 2 2 1 . . . 3 2 . 2 . . . . . . . . . Drone Launches . | . . . . . . . . . . . . . . . . . . . . . . . . . . . . . Drone Recoveries . | . . . . . . . . . . . . . . . . . . . . . . . . . . . . . Exploration | -11 -10 -10 -10 -8 -8 -6 -6 -6 -6 -6 -6 -5 -5 -5 -5 -5 -5 -5 -4 -4 -4 -4 -4 -4 -4 -4 -4 -4 ------------- Run | Yrd Mat Min Sub Rec Scr Fac Was Fac Low Low Zio Pro Fac Was Fac Upp Upp War Pro Fac Was Fac Gar Fac Ext Cet Arc Hub Turns Passed 21570 | 28 1371 356 1830 826 1810 676 42 1533 315 716 612 1040 629 123 1539 558 248 710 163 684 155 53 2239 296 1306 324 1212 176 Spaces Moved 19715 | 11 712 236 1004 504 1333 1181 108 2684 562 891 884 605 850 148 1808 706 498 1136 198 791 152 47 1106 329 835 158 177 61 Core . | . . . . . . . . . . . . . . . . . . . . . . . . . . . . . Treads 1506 | . 379 . . . . . . . . . . . . . . . . . . . . . 529 . 233 127 177 61 Legs 32 | 11 21 . . . . . . . . . . . . . . . . . . . . . . . . . . . Wheels 3173 | . 312 236 1004 504 1028 . . 7 . . . . . . . . . . . . . . . . 51 31 . . Hover 11271 | . . . . . 305 . . 233 562 891 884 605 850 148 1808 706 498 1136 198 791 152 47 577 329 551 . . . Flight 3733 | . . . . . . 1181 108 2444 . . . . . . . . . . . . . . . . . . . . Fastest Speed 31 | 120 120 150 150 150 56 37 37 37 52 52 52 52 45 45 35 35 35 35 38 31 38 38 31 32 32 160 160 160 Average Speed 73 | 120 166 150 150 150 126 37 37 40 52 52 52 52 45 45 45 57 35 48 70 40 38 38 132 38 78 165 160 160 Slowest Speed 250 | 120 240 150 150 150 185 37 37 110 52 106 52 52 52 45 240 100 35 102 95 43 38 38 250 98 190 190 160 160 Overloaded Moves . | . . . . . . . . . . . . . . . . . . . . . . . . . . . . . Propulsion Burnouts . | . . . . . . . . . . . . . . . . . . . . . . . . . . . . . Robots Hopped 22 | . . . . . . 5 . 17 . . . . . . . . . . . . . . . . . . . . Potential Cave-ins 4 | . . . . . . . . . . . . . . . 2 . . . . . . . . 2 . . . . Cave-ins Triggered . | . . . . . . . . . . . . . . . . . . . . . . . . . . . . . Exploration Rate (%) 61 | 2 89 44 52 94 81 36 70 64 89 80 87 82 25 96 57 82 63 91 56 21 87 1 91 12 84 67 81 9 Regions Visited 28 Branch Regions 16 Pre-discovered Areas 23 | . 3 1 . 8 4 1 . . . 1 . 1 1 . . 1 1 1 . . . . . . . . . . Known Exits Taken 17 | . . 1 . . 1 . . 1 1 1 1 1 . . 1 1 1 1 1 . . 1 . 1 1 1 1 . Unknown Exits Taken 4 | 1 1 . 1 1 . . . . . . . . . . . . . . . . . . . . . . . . Scrap Searched 23 | . . 1 4 . 2 . . . 2 3 3 2 . . . 3 2 . 1 . . . . . . . . . Spaces Dug 190 | . . . 5 . . 14 . 38 5 14 . 6 15 . 14 14 . 40 . 2 . . 18 5 . . . . Terrain Destroyed 775 | . 2 . 21 3 . 16 . 64 9 61 . 35 77 18 103 53 5 161 12 47 11 2 30 18 17 . . 10 Melee 17 | . . . . . . . . . . . . . . . . . . 3 . . . . 14 . . . . . Projectile 488 | . 2 . 4 3 . 16 . 52 9 61 . 35 47 18 94 32 5 . 12 32 11 2 15 18 17 . . 3 AOE 269 | . . . 17 . . . . 12 . . . . 30 . 9 21 . 158 . 15 . . . . . . . 7 Terrain Rammed . | . . . . . . . . . . . . . . . . . . . . . . . . . . . . . Walls Destroyed . | . . . . . . . . . . . . . . . . . . . . . . . . . . . . . Machines Disabled . | . . . . . . . . . . . . . . . . . . . . . . . . . . . . . Actions | -11 -10 -10 -10 -8 -8 -6 -6 -6 -6 -6 -6 -5 -5 -5 -5 -5 -5 -5 -4 -4 -4 -4 -4 -4 -4 -4 -4 -4 --------- Run | Yrd Mat Min Sub Rec Scr Fac Was Fac Low Low Zio Pro Fac Was Fac Upp Upp War Pro Fac Was Fac Gar Fac Ext Cet Arc Hub Total 25652 | 15 818 236 1257 555 1459 1395 109 3064 576 1088 1035 1291 1040 180 2393 830 565 1278 211 1096 236 75 1608 483 1377 204 1079 99 Wait 4243 | . 22 . 157 25 86 166 1 245 6 115 150 639 129 2 419 89 51 92 2 221 64 23 202 113 327 21 870 6 Move 19647 | 10 711 235 1003 503 1332 1171 107 2650 561 890 883 604 850 147 1807 705 497 1135 197 791 151 46 1105 328 834 157 176 61 Hop 22 | . . . . . . 5 . 17 . . . . . . . . . . . . . . . . . . . . Pick Up 147 | . 20 . 15 1 16 4 1 13 1 2 1 2 4 2 15 3 3 3 . 5 3 . 13 3 11 4 2 . Fast Attach 103 | . 3 . 2 1 5 7 . 15 . . . . 5 . 7 . 2 6 1 6 1 . 17 5 11 4 5 . Attach 69 | . 2 . 2 . 2 5 . 7 . 2 . . . . 8 2 . 3 1 7 1 . 15 2 6 . 3 1 Detach 36 | . . . . . 2 . . 5 . . . . . . . 1 . 4 1 1 1 . 9 4 8 . . . Swap 67 | . 7 . 11 . 1 1 . 4 . . . . 3 . 3 1 . 4 . 3 . . 10 4 9 1 . 5 Drop 179 | . 10 . 20 1 15 6 . 23 . . . 4 2 4 10 2 5 9 . 7 2 . 25 6 14 8 6 . Fire 857 | 5 39 1 47 23 . 24 . 70 8 53 . 40 47 25 124 27 7 10 9 43 13 6 126 18 57 9 4 22 Melee 95 | . . . . . . . . . . . . . . . . . . 4 . 12 . . 64 . 2 . 13 . Ram 2 | . 1 . . 1 . . . . . . . . . . . . . . . . . . . . . . . . Kick . | . . . . . . . . . . . . . . . . . . . . . . . . . . . . . Crush 9 | . 3 . . . . . . . . . . . . . . . . . . . . . . . 2 . . 4 Escape Stasis 58 | . . . . . . . . 15 . . . . . . . . . . . . . . 13 . 30 . . . Rewire 108 | . . . . . . 6 . . . 26 1 . . . . . . 8 . . . . 9 . 58 . . . Trap 2 | . . . . . . . . . . . . 2 . . . . . . . . . . . . . . . . Miscellaneous 8 | . . . . . . . . . . . . . . . . . . . . . . . . . 8 . . . Route ------- -11/Scrapyard -10/Materials (discovered 5 exits: *Mat x3 / [*Min] / Sub) -10/Mines (discovered 3 exits: *Mat / [*Exi] / *Sub) -10/Subcaves (discovered 3 exits: [*Mat x2] / *Rec) -8/Recycling (discovered 2 exits: *Fac / *Scr) -8/Scraptown (discovered 2 exits: *Fac x2) -6/Factory (discovered 6 exits: Fac x4 / *Low x2) -6/Waste -6/Factory (discovered 2 exits: *Low x2) -6/Lower Caves -6/Lower Caves -6/Zion (discovered 2 exits: Dee / *Pro) -5/Proximity Caves -5/Factory (discovered 3 exits: *Fac / *Upp x2) -5/Waste -5/Factory (discovered 2 exits: *Upp x2) -5/Upper Caves -5/Upper Caves -5/Warlord -4/Proximity Caves -4/Factory (discovered 2 exits: [Upp] / Ext) -4/Waste -4/Factory -4/Garrison (discovered 4 exits: *Res x3 / *Fac) -4/Factory -4/Extension (discovered 3 exits: *Res x2 / *Cet) -4/Cetus (discovered 2 exits: *Res / *Arc) -4/Archives (discovered 3 exits: *Res / *Hub x2) -4/Hub_04(d) (discovered 3 exits: *Res x2 / Gar) History --------- Turn | Location | Event 17 | -11/Scrapyard | Discovered new exit (range 3) 29 | -11/Scrapyard | Entered Materials 313 | -10/Materials | Build established: Mutant 360 | -10/Materials | Discovered new exit (range 16) 546 | -10/Materials | Central database locked down 664 | -10/Materials | Identified exit to Subcaves 664 | -10/Materials | Identified exit to Materials 726 | -10/Materials | Learned location of Mines (-10) 817 | -10/Materials | Learned 2 Storage zone layouts 869 | -10/Materials | Learned Storage garrison access intel 1400 | -10/Materials | Entered Mines 1403 | -10/Mines | Received a Mining Laser from a helpful Derelict 1446 | -10/Mines | Met a Derelict bent on vengeance 1466 | -10/Mines | Deemed a non-threat by the Exiles lab entrance 1466 | -10/Mines | Discovered new exit (range 5) 1556 | -10/Mines | Discovered exit to Subcaves (range 6) 1589 | -10/Mines | Learned location of Recycling (-8) 1756 | -10/Mines | Entered Subcaves 1777 | -10/Subcaves | Learned Materials emergency access door positions 1868 | -10/Subcaves | Ambushed by angry Subdweller bent on revenge 1995 | -10/Subcaves | Shifting Twisted Machinery released Riot Gun 2116 | -10/Subcaves | Discovered new exit (range 11) 2121 | -10/Subcaves | Shifting Twisted Machinery released Ripper 2183 | -10/Subcaves | Visited Clippyterm 2188 | -10/Subcaves | Learned Research machine intel 2188 | -10/Subcaves | Learned Factory stockpile data 2376 | -10/Subcaves | Shifting Twisted Machinery released Hvy. Battle Rifle 2378 | -10/Subcaves | Shifting Twisted Machinery released Sub. Optics 2421 | -10/Subcaves | Ambushed by Subdwellers from Twisted Machinery 2910 | -10/Subcaves | Discovered new exit (range 15) 2955 | -10/Subcaves | Discovered new exit (range 9) 2992 | -10/Subcaves | Visited 4L-MR0's lab 3011 | -10/Subcaves | Found Powered Cannon 3012 | -10/Subcaves | Attached Powered Cannon, gained temporary slot: Power 3118 | -10/Subcaves | A Subdweller sparked back to life 3123 | -10/Subcaves | Core integrity fell below 50% 3162 | -10/Subcaves | Learned Materials emergency access door positions 3175 | -10/Subcaves | Found Flightbrick 3356 | -10/Subcaves | A swath of the cavern ceiling suddenly collapsed 3586 | -10/Subcaves | Entered Recycling 3866 | -8/Recycling | Discovered new exit (range 15) 4068 | -8/Recycling | Core integrity fell below 20% 4376 | -8/Recycling | Scanned before Scraplab entrance 4398 | -8/Recycling | Entered Scraplab 4400 | -8/Recycling | Learned Storage emergency access door positions 4410 | -8/Recycling | Discovered new exit (range 2) 4412 | -8/Recycling | Entered Scraptown 4412 | -8/Scraptown | System corruption cleaned by C-Scrubber 4523 | -8/Scraptown | Visited UFD Registry 4523 | -8/Scraptown | Registered with UFD as "Deathparser" 4544 | -8/Scraptown | Visited IN-MT5's Study 4565 | -8/Scraptown | Visited CPS Storage 4612 | -8/Scraptown | Scanned Subdweller tech in exchange for log data 4616 | -8/Scraptown | Learned location of Zion (-6) 4631 | -8/Scraptown | Discovered new exit (range 11) 4676 | -8/Scraptown | Guru changed UFD alias to "Technosplitter" 5213 | -8/Scraptown | Visited Supply Room 5279 | -8/Scraptown | Visited Science Guys 5300 | -8/Scraptown | Visited Observation Area 5421 | -8/Scraptown | Visited Chapter 10 5449 | -8/Scraptown | Visited Scrap Suit Storage 5469 | -8/Scraptown | Visited Analyses Database 5497 | -8/Scraptown | Visited Modified Component R&D 5533 | -8/Scraptown | Visited Botcube Research 5562 | -8/Scraptown | Visited Scrapoid Pod Storage 5589 | -8/Scraptown | Visited Cartography Club 5919 | -8/Scraptown | Learned 8 Materials zone layouts 5919 | -8/Scraptown | Learned 12 Materials zone layouts 5919 | -8/Scraptown | Learned 12 Factory zone layouts 5919 | -8/Scraptown | Learned 16 Factory zone layouts 5919 | -8/Scraptown | Learned 12 Research zone layouts 5919 | -8/Scraptown | Learned 16 Lower Caves zone layouts 5919 | -8/Scraptown | Learned 16 Proximity Caves zone layouts 5919 | -8/Scraptown | Learned 24 Proximity Caves zone layouts 5919 | -8/Scraptown | Learned 20 Upper Caves zone layouts 5919 | -8/Scraptown | Learned 4 Hub_04(d) zone layouts 5919 | -8/Scraptown | Learned Storage emergency access door positions 5919 | -8/Scraptown | Learned location of 2 exits from Factory 5919 | -8/Scraptown | Learned location of 2 exits from Lower Caves 5919 | -8/Scraptown | Learned location of 3 exits from Proximity Caves 5919 | -8/Scraptown | Identified exit to Factory 5944 | -8/Scraptown | Found Deep Structural Scanner 6142 | -8/Scraptown | Met Optimus 6142 | -8/Scraptown | Accepted into 0bPrime 6222 | -8/Scraptown | Entered Factory 6222 | -6/Factory | Evolved 8 slots: Propulsion x3, Utility x5 6223 | -6/Factory | Identified exit to Factory 6223 | -6/Factory | Identified exit to Lower Caves 6224 | -6/Factory | Attached Flightbrick, gained temporary slots: Utility x3 6310 | -6/Factory | Loaded intel: 8 recycling unit locations 6391 | -6/Factory | Learned location of Protoforge (-2) 6898 | -6/Factory | Sucked down chute 6898 | -6/Factory | Entered Waste 6901 | -6/Waste | Spotted C-40 Crusher 6906 | -6/Waste | Spotted C-40 Crusher 6906 | -6/Waste | Spotted C-40 Crusher 6912 | -6/Waste | Spotted C-40 Crusher 6913 | -6/Waste | EMP discharged 6921 | -6/Waste | Found Corrupted Prototype Hackware 6927 | -6/Waste | Build established: Hacker-Mutant 6927 | -6/Waste | Spotted C-40 Crusher 6929 | -6/Waste | Spotted C-40 Crusher 6936 | -6/Waste | Discovered new exit (range 12) 6940 | -6/Waste | Identified exit to Factory 6940 | -6/Waste | Entered Factory 6962 | -6/Factory | Loaded intel: 8 recycling unit locations 7259 | -6/Factory | Build established: Hacker-Scout 7336 | -6/Factory | Fabricated Imp. Hacking Suite? 7400 | -6/Factory | Spotted B-75 Beast 7671 | -6/Factory | Watched by a mysterious "MATRIX" hacker. 7739 | -6/Factory | Allied Derelicts ambushed cargo convoy from Garrison Access 7739 | -6/Factory | Cargo convoy interrupted 7782 | -6/Factory | Lost 3 allies 7849 | -6/Factory | Identified Exp. System Shield 7868 | -6/Factory | Found Prototype Launcher 8150 | -6/Factory | Fabricated Tri-rail Accelerator (x1) 8210 | -6/Factory | Found Prototype Processor 8210 | -6/Factory | Identified Exp. Target Analyzer 8213 | -6/Factory | Found Prototype Processor 8213 | -6/Factory | Identified Exp. Terrain Scan Processor 8215 | -6/Factory | Found Prototype Processor 8215 | -6/Factory | Identified Spectral Analyzer 8473 | -6/Factory | Entered Lower Caves 8474 | -6/Lower Caves | Identified exit to Lower Caves 8555 | -6/Lower Caves | Encountered a Warlord checkpoint 8610 | -6/Lower Caves | Build established: Scout 8682 | -6/Lower Caves | Learned Factory terminal intel 8788 | -6/Lower Caves | Entered another Lower Caves area 8789 | -6/Lower Caves | Identified exit to Zion 8961 | -6/Lower Caves | Encountered a Warlord checkpoint 9033 | -6/Lower Caves | Attracted the attention of an 0b10 outpost 9103 | -6/Lower Caves | Destroyed 7 combat bots 9210 | -6/Lower Caves | Attacked by a delusional Derelict stockpiling Unaware 9504 | -6/Lower Caves | Entered Zion 9504 | -6/Zion | Accompanied by 6 allies 9505 | -6/Zion | Identified exit to Proximity Caves 9531 | -6/Zion | Found CR-A16's Pointy Stick 9559 | -6/Zion | Build established: Commander-Scout 9639 | -6/Zion | Given A8's code to call for help 9645 | -6/Zion | Learned Factory stockpile data 9750 | -6/Zion | Turned away by Imprinter 9782 | -6/Zion | Identified exit to Deep Caves 9792 | -6/Zion | Learned Factory emergency access door positions 9858 | -6/Zion | Received a hallucinogenic algorithm 10116 | -6/Zion | Entered Proximity Caves 10116 | -5/Proximity Caves | Accompanied by 6 allies 10295 | -5/Proximity Caves | Received a Behemoth hack from an annoying Tinkerer 10582 | -5/Proximity Caves | Derelict sapper outpost attacked 10731 | -5/Proximity Caves | Build established: Scout 10817 | -5/Proximity Caves | Encountered a Derelict sapper outpost 11156 | -5/Proximity Caves | Entered Factory 11156 | -5/Factory | Evolved 2 slots: Utility x2 11159 | -5/Factory | Loaded intel: 26 terminal locations 11193 | -5/Factory | Spotted B-75 Beast 11474 | -5/Factory | Repaired Tri-rail Accelerator 11520 | -5/Factory | Loaded intel: 8 recycling unit locations 11701 | -5/Factory | Discovered new exit (range 20) 11717 | -5/Factory | Build established: Hacker-Scout 11720 | -5/Factory | Identified exit to Upper Caves 11785 | -5/Factory | Sucked down chute 11785 | -5/Factory | Entered Waste 11800 | -5/Waste | EMP discharged 11801 | -5/Waste | Spotted C-40 Crusher 11801 | -5/Waste | Spotted C-40 Crusher 11801 | -5/Waste | Spotted C-40 Crusher 11808 | -5/Waste | Destroyed C-40 Crusher 11820 | -5/Waste | Destroyed C-40 Crusher 11822 | -5/Waste | Destroyed C-40 Crusher 11824 | -5/Waste | Spotted C-40 Crusher 11833 | -5/Waste | Destroyed C-40 Crusher 11866 | -5/Waste | Spotted C-40 Crusher 11872 | -5/Waste | Spotted C-40 Crusher 11882 | -5/Waste | Destroyed C-40 Crusher 11892 | -5/Waste | Destroyed C-40 Crusher 11900 | -5/Waste | EMP discharged 11900 | -5/Waste | System corruption reached 10% 11903 | -5/Waste | Discovered new exit (range 11) 11907 | -5/Waste | Identified exit to Factory 11908 | -5/Waste | Entered Factory 11933 | -5/Factory | Spotted B-75 Beast 12136 | -5/Factory | Repaired Corrupted Antigrav Array 12271 | -5/Factory | Loaded intel: 8 recycling unit locations 12444 | -5/Factory | Fabricated P-70 Sage? 12509 | -5/Factory | Fabricated Tri-rail Accelerator? 12553 | -5/Factory | Sage 6a assimilated hostile W-25 Informer 12756 | -5/Factory | Garrison activated, responded to threat 12827 | -5/Factory | Lost 3 parts (1p1n1w) 12885 | -5/Factory | Repaired Broken Cld. Gravmag System 13247 | -5/Factory | Identified Rocket Array 13408 | -5/Factory | First assault squad dispatched 13447 | -5/Factory | Entered Upper Caves 13448 | -5/Upper Caves | Identified exit to Upper Caves 13542 | -5/Upper Caves | Build established: Hacker-Mutant 13680 | -5/Upper Caves | Attracted the attention of an 0b10 base 13708 | -5/Upper Caves | Destroyed 7 combat bots 13733 | -5/Upper Caves | Learned location of Armory (-4) 13777 | -5/Upper Caves | Learned Factory stockpile data 13961 | -5/Upper Caves | Spotted B-75 Beast 14005 | -5/Upper Caves | Entered another Upper Caves area 14006 | -5/Upper Caves | Identified exit to Warlord 14033 | -5/Upper Caves | Spotted B-75 Beast 14144 | -5/Upper Caves | Learned location of 1 exit from Proximity Caves 14253 | -5/Upper Caves | Entered Warlord 14254 | -5/Warlord | Identified exit to Proximity Caves 14327 | -5/Warlord | Learned Testing security intel 14327 | -5/Warlord | Learned Factory repair station intel 14327 | -5/Warlord | Learned Research repair station intel 14327 | -5/Warlord | Learned Research garrison access intel 14327 | -5/Warlord | Learned 4 Research zone layouts 14327 | -5/Warlord | Learned 4 Access zone layouts 14327 | -5/Warlord | Learned 4 Quarantine zone layouts 14327 | -5/Warlord | Learned 4 Command zone layouts 14450 | -5/Warlord | Rebuked by Warlord 14475 | -5/Warlord | Warlord's base attacked by MAIN.C 14555 | -5/Warlord | Found Prototype Energy Gun 14555 | -5/Warlord | Identified Vortex Shotgun 14557 | -5/Warlord | Found Prototype Piercing Weapon 14557 | -5/Warlord | Identified Vortex Lance 14591 | -5/Warlord | Found Prototype Device 14591 | -5/Warlord | Identified Exp. Phase Shifter 14595 | -5/Warlord | Found Prototype Processor 14595 | -5/Warlord | Identified Exp. Armor Integrity Analyzer 14825 | -5/Warlord | Warlord forces counterattacked 14828 | -5/Warlord | Found Prototype Launcher 14828 | -5/Warlord | Identified Vortex Catalyst Activator 14876 | -5/Warlord | Spotted Striker 14915 | -5/Warlord | Spotted Striker 14949 | -5/Warlord | Destroyed 15 combat bots 14949 | -5/Warlord | Lost 4 allies 14963 | -5/Warlord | Entered Proximity Caves 14963 | -4/Proximity Caves | Accompanied by 1 ally 14964 | -4/Proximity Caves | Identified exit to Factory 14973 | -4/Proximity Caves | Learned Research stockpile data 15072 | -4/Proximity Caves | Learned location of 1 exit from Research 15126 | -4/Proximity Caves | Entered Factory 15126 | -4/Factory | Evolved 2 slots: Propulsion x1, Utility x1 15127 | -4/Factory | Identified exit to Extension 15129 | -4/Factory | Loaded intel: 6 repair station locations 15239 | -4/Factory | Targeted by mysterious "MATRIX" hacker. 15375 | -4/Factory | Discovered new exit (range 19) 15534 | -4/Factory | Loaded intel: 8 recycling unit locations 15628 | -4/Factory | Fabricated Tri-rail Accelerator? 15650 | -4/Factory | Lost 4 parts (1p1n1u1w) 15770 | -4/Factory | Fabricated Tri-rail Accelerator (x1) 15810 | -4/Factory | Manually triggered Chute Trap 15810 | -4/Factory | Sucked down chute 15810 | -4/Factory | Entered Waste 15817 | -4/Waste | Warlord forces began an assault 15819 | -4/Waste | Destroyed C-40 Crusher 15826 | -4/Waste | Spotted C-40 Crusher 15837 | -4/Waste | Spotted C-40 Crusher 15847 | -4/Waste | Destroyed C-40 Crusher 15848 | -4/Waste | Spotted C-40 Crusher 15855 | -4/Waste | Allies destroyed C-40 Crusher 15865 | -4/Waste | Spotted C-40 Crusher 15868 | -4/Waste | Lost 6 allies 15874 | -4/Waste | Allies destroyed C-40 Crusher 15876 | -4/Waste | Spotted C-40 Crusher 15886 | -4/Waste | Allies destroyed C-40 Crusher 15937 | -4/Waste | Discovered new exit (range 13) 15947 | -4/Waste | Identified exit to Factory 15965 | -4/Waste | Entered Factory 15965 | -4/Factory | Accompanied by 11 allies 15993 | -4/Factory | Identified exit to Garrison 16018 | -4/Factory | Entered Garrison 16018 | -4/Garrison | Accompanied by 9 allies 16082 | -4/Garrison | Rewired B-86 Titan 16119 | -4/Garrison | Revealed the true nature of CR-A16's Pointy Stick 16224 | -4/Garrison | Triggered checkpoint 16267 | -4/Garrison | Garrison Relay disabled 16312 | -4/Garrison | Triggered checkpoint 16342 | -4/Garrison | Triggered checkpoint 16368 | -4/Garrison | Triggered checkpoint 16407 | -4/Garrison | Triggered checkpoint 16592 | -4/Garrison | Triggered checkpoint 16598 | -4/Garrison | Discovered new exit (range 13) 16628 | -4/Garrison | Discovered new exit (range 6) 16680 | -4/Garrison | Identified exit to Research 16711 | -4/Garrison | Triggered checkpoint 16840 | -4/Garrison | Installed Relay Interface Framework 17273 | -4/Garrison | Triggered checkpoint 17360 | -4/Garrison | Lost 3 parts (3u) 17577 | -4/Garrison | Discovered exit to Research (range 10) 17664 | -4/Garrison | Lost 3 parts (1p2n) 17927 | -4/Garrison | Discovered exit to Research (range 11) 17934 | -4/Garrison | Triggered checkpoint 17995 | -4/Garrison | Build established: Scavenger-Mutant 18015 | -4/Garrison | Garrison Relay disabled 18255 | -4/Garrison | Identified exit to Factory 18257 | -4/Garrison | Entered Factory 18319 | -4/Factory | Repaired Broken Tri-rail Accelerator 18335 | -4/Factory | Loaded intel: 8 recycling unit locations 18342 | -4/Factory | Spotted B-86 Titan 18354 | -4/Factory | System corruption reached 10% 18368 | -4/Factory | Central database locked down 18489 | -4/Factory | Discovered exit to Extension (range 11) 18553 | -4/Factory | Entered Extension 18616 | -4/Extension | Rescued a captive Derelict 18625 | -4/Extension | Rescued a captive Derelict 18661 | -4/Extension | Rescued a captive Derelict 18772 | -4/Extension | Rescued a captive Derelict 18772 | -4/Extension | Rescued a captive Derelict 18869 | -4/Extension | Lost 5 allies 18950 | -4/Extension | Rescued A7 18960 | -4/Extension | Rescued a captive Derelict 18961 | -4/Extension | Rescued a captive Derelict 19195 | -4/Extension | Spotted B-86 Titan 19201 | -4/Extension | Spotted B-86 Titan 19204 | -4/Extension | Discovered exit to Research (range 14) 19205 | -4/Extension | Destroyed B-86 Titan 19206 | -4/Extension | Core integrity fell below 50% 19209 | -4/Extension | Destroyed B-86 Titan 19774 | -4/Extension | Discovered exit to Research (range 10) 19775 | -4/Extension | Discovered new exit (range 6) 19807 | -4/Extension | Identified exit to Cetus 19859 | -4/Extension | Entered Cetus 19859 | -4/Cetus | Accompanied by 11 allies (A7) 19864 | -4/Cetus | Acquired a Cetus Manufacturing Module code from A7 19882 | -4/Cetus | Spotted Cetus Guard 19882 | -4/Cetus | Spotted Cetus Guard 19883 | -4/Cetus | Spotted Cetus Guard 19886 | -4/Cetus | Destroyed Cetus Guard 19886 | -4/Cetus | Destroyed Cetus Guard 19886 | -4/Cetus | Spotted Cetus Guard 19894 | -4/Cetus | Allies destroyed Cetus Guard 19901 | -4/Cetus | Allies destroyed Cetus Guard 19983 | -4/Cetus | Started Cetus Manufacturing Module 20006 | -4/Cetus | Escorted A7 to Cetus Mainframe 20008 | -4/Cetus | Manufactured an Enhanced Grunt 20028 | -4/Cetus | Discovered new exit (range 15) 20033 | -4/Cetus | Manufactured an Enhanced Grunt 20053 | -4/Cetus | Spotted Cetus Guard 20053 | -4/Cetus | Spotted Cetus Guard 20055 | -4/Cetus | Allies destroyed Cetus Guard 20055 | -4/Cetus | Spotted Cetus Guard 20055 | -4/Cetus | Spotted Cetus Guard 20058 | -4/Cetus | Manufactured an Enhanced Grunt 20058 | -4/Cetus | Destroyed Cetus Guard 20061 | -4/Cetus | Destroyed Cetus Guard 20068 | -4/Cetus | Allies destroyed Cetus Guard 20078 | -4/Cetus | Discovered exit to Research (range 15) 20083 | -4/Cetus | Manufactured an Enhanced Grunt 20086 | -4/Cetus | Met Revision 17 20108 | -4/Cetus | Manufactured an Enhanced Grunt 20128 | -4/Cetus | Build established: Commander-Mutant 20164 | -4/Cetus | Identified exit to Archives 20183 | -4/Cetus | Entered Archives 20183 | -4/Archives | Accompanied by 13 allies (A7) 20188 | -4/Archives | Received a hacking code to weaken MAIN.C 20253 | -4/Archives | Discovered new exit (range 14) 20284 | -4/Archives | Discovered new exit (range 16) 20469 | -4/Archives | Discovered exit to Research (range 15) 21391 | -4/Archives | Identified exit to Hub_04(d) 21395 | -4/Archives | Entered Hub_04(d) 21395 | -4/Hub_04(d) | Accompanied by 12 allies 21446 | -4/Hub_04(d) | Garrison activated, responded to threat 21447 | -4/Hub_04(d) | Discovered exit to Research (range 16) 21479 | -4/Hub_04(d) | Lost 4 allies 21486 | -4/Hub_04(d) | Identified exit to Garrison 21510 | -4/Hub_04(d) | Network Hub disabled 21521 | -4/Hub_04(d) | Destroyed Lightning 21527 | -4/Hub_04(d) | Spotted Lightning 21527 | -4/Hub_04(d) | Spotted Lightning 21527 | -4/Hub_04(d) | Spotted Lightning 21527 | -4/Hub_04(d) | Spotted Lightning 21527 | -4/Hub_04(d) | Spotted Lightning 21529 | -4/Hub_04(d) | Spotted Lightning 21529 | -4/Hub_04(d) | Spotted Lightning 21529 | -4/Hub_04(d) | Spotted Lightning 21534 | -4/Hub_04(d) | Destroyed Lightning 21543 | -4/Hub_04(d) | Destroyed Lightning 21553 | -4/Hub_04(d) | Lost 8 allies 21564 | -4/Hub_04(d) | Core integrity fell below 20% 21571 | -4/Hub_04(d) | Destroyed by Lightning with EMDS Last Messages --------------- Flexi-carbon Leg. 21566_ Penetrated by EMDS Slug. 21566_ U-05 Engineer lays Concrete. 21566_ Slammed into U-05 Engineer. 21567_ Penetrated by EMDS Slug. 21567_ ALERT: Construction progress impeded, dispatching reinforcements to local area. 21567_ Slug penetrates Lightning. 21567_ Penetrated by EMDS Slug. 21567_ R-10 Processor collects Prototype Device. 21568_ R-10 Processor collects Corrupted Hvy. Beamcaster. 21569_ K-01 Serf exits level. 21569_ G-67 Veteran IFF system glitched. 21570_ Penetrated by Slug. 21570_ Centrium Heavy Treads destroyed. 21570_ Slug penetrates R-10 Processor. 21571_ Penetrated by EMDS Slug. 21571_ U-05 Engineer destroyed. 21571_ Penetrated by EMDS Slug. Map ----- +----------------------------------------------------+ | ?????????????????????????????????????????????????? | | ?????????????????????????????????????????????????? | | ?????????????????????????????????????????????????? | | ?????????????????????????????????????????????????? | | ?????????????????????????????????????????????????? | | ?????????????????????????????????????????????????? | | ??????????????????????????????????#####??????????? | | ??????????????????????????????????# #??????????? | | ??????????????????????????????????# #??????????? | | ??????????????????????????????????# #??????????? | | ??????????????????????????????????# #??????????? | | ?????????????????????????########## #??????????? | | ???????????????w?????????# ## #??????????? | | ?????????????????????????# """ ## #??????????? | | ?????????????????????????# ## #??????????? | | ???????????????????A ????# """ ## #??????????? | | ???????????????????? ????# ## #????# "" | | ???????????????????# ????# "" !!!## #????# | | ???????????????????#k????#""" !! # #????####### | | ???????????????????#!????#"T !! ## #??????????? | | ???????????????????#%????#" " ## %#??????????? | | ???????????????????#|????# ""! ## ############ | | ???????????????????#%##### ![= #= % * =!%! | | ???????????????????#*=*%!####=*%=/= %= !!! | | ??????????????????## %=%gh!%*! !% %[[ #""### | | ??????????????????#% % !i# #"""" ## | | ?????????????????#"""* " #"""" ## | | ?????????????????#" %" """" # ## | | ?????????????????#### o # "" # ## | | ?????????????????? # """" # ## | | ????????????k?? + """" ############ | | ????????????? # #??????????# | | ????????????##########+###########??????????###### | | ???????????????????????????# #????????????????# #? | | ???????????????????????????# #????????????????# #? | | ?????????????????????????????????????????????????? | | ?????????????????????????????????????????????????? | | ?????????????????????????????????????????????????? | | ?????????????????????????????????????????????????? | | ?????????????????????????????????????????????????? | | ?????????????????????????????????????????????????? | | ?????????????????????????????????????????????????? | | ?????????????????????????????????????????????????? | | ?????????????????????????????????????????????????? | +----------------------------------------------------+ Best States ------------- Heat Dissipation 81 Energy Generation 25 Energy Capacity 350 Matter Stores 300 Matter Capacity 800 Sight Range 24 Robot Scan Range 18 Terrain Scan Range 14 Terrain Scan Density 10 Jamming Range 16 Cloak Strength 3 Armor Coverage 900 Weapon Shielding 33 Evasion (%) 62 Target Analysis 10 Core Analysis 6 Recoil Reduction 6 Kinecelleration 40 Offensive Hacking 46 Defensive Hacking 32 Relay Coupler Types 1 Relay Coupler Value 27 Authchip Count 2 Item Schematics ----------------- Hvy. Shock Bomb Launcher | -6/Factory | Hacked Imp. Hacking Suite | -6/Factory | Hacked Imp. System Restoration Module | -6/Factory | Hacked Exp. System Shield | -6/Factory | Scanalyzed Tri-rail Accelerator | -6/Factory | Hacked Adv. Shield Generator | -6/Factory | Hacked Variable Charge Gun | -6/Zion | Archive Adv. Heat Sink | -6/Zion | Archive Hyp. Gauss Rifle | -6/Zion | Archive Adv. System Shield | -6/Zion | Archive Imp. Arc Projector | -6/Zion | Archive Force Field | -6/Zion | Archive Adv. Cryofiber Web | -6/Zion | Archive Adv. Target Analyzer | -6/Zion | Archive Adv. Melee Analysis Suite | -6/Zion | Archive Magnetic Acceleration Cannon | -6/Zion | Archive Adv. Hacking Suite | -6/Zion | Archive Adv. Terrain Scanner | -6/Zion | Archive Imp. Kinecellerator | -6/Zion | Archive Power Amplifier | -6/Zion | Archive Mic. Antimatter Reactor | -5/Factory | Hacked Cld. Gravmag System | -5/Factory | Scanalyzed Cld. Antigrav System | -5/Factory | Scanalyzed Enh. Nuclear Core | -5/Factory | Scanalyzed Rocket Array | -5/Factory | Scanalyzed Adv. System Restoration Module | -5/Factory | Scanalyzed Imp. Plasma Cutter | -5/Factory | Hacked Adv. Sensor Array | -5/Factory | Hacked Enh. Nova Cannon | -4/Factory | Hacked Micro-nuke Launcher | -4/Factory | Hacked Enh. Optical Array | -4/Factory | Hacked Hcp. Matter Pod | -4/Extension | Hacked Robot Schematics ------------------ L-41 Fighter | -6/Zion | Archive M-28 Smith | -6/Zion | Archive A-15 Conveyor | -6/Zion | Archive Fabricated ------------ Imp. Hacking Suite | x1 | -6/Factory Tri-rail Accelerator | x1 | -6/Factory P-70 Sage | x2 | -5/Factory | Preloaded Tri-rail Accelerator | x1 | -5/Factory Tri-rail Accelerator | x1 | -4/Factory Tri-rail Accelerator | x1 | -4/Factory Repaired ---------- Tri-rail Accelerator | 25% | -5/Factory Antigrav Array | 60% | -5/Factory | Corrupted Cld. Gravmag System | 99% | -5/Factory | Broken Tri-rail Accelerator | 84% | -4/Factory | Broken Studied --------- Xenon Bombardment Thruster | -6/Factory | Hacked Antigrav System | -5/Factory | Hacked Linear Gravjet | -5/Factory | Hacked Lgt. Fission Core | -5/Factory | Hacked Mic. Fission Core | -5/Factory | Hacked Antigrav Array | -4/Factory | Hacked Neutrino Core | -4/Factory | Hacked Imp. Proton Missile Launcher | -4/Factory | Hacked Imp. Antigrav System | -4/Factory | Hacked Alien Tech Used ----------------- None Achievements -------------- Cannon Specialist Late Bloomer Sniper The Robot, The Myth, The Legend Challenges ------------ None Game ------ Seed AnalysisSystemStorage Manual? 0 Play Time 04:21:27 Cumulative 435.4 hours Start 2026.04.29 @ 18:07:04 End 2026.05.01 @ 17:38:47 Sessions 17 Manual Loads 0 Difficulty Rogue Special Mode None Game No. 366 Rogue 330 Adventurer 36 Explorer 0 Win Type - Total 5 Types 2/0/0/1/0/0/0/2/0/0 Lore% 81 Gallery% 69 Achievement% 60 Wizard Run 0 Options --------- Layout 2 ASCII 0 Keyboard 0 Movement Numpad Keybinds 0 Fullscreen 1 Font 48/Smallcaps Map View 50x44 Zoom Use 0% Tactical HUD 1 Map Filters NONE Filters NONE Steam 1 RUN: 69b9cb7b-b002-4aab-84a4-65f91b96e7f6